Cogmind - Beta 15 @@@ ROGUE MODE // 2025.08.13 @ 03:05:06 // Winter2019/RPGLIKE Player: Selene Result: Destroyed by Executioner with Helical Railgun Performance ------------- Evolutions (7) 3500 Regions Visited (28) 5600 Robots Destroyed (431) 2155 Value Destroyed (20439) 20439 Prototype IDs (81) 1620 Alien Tech Used (3) 600 Bonus (12293) 12293 TOTAL SCORE: 46207 Bonus ------- High Alert Combat Kills 5530 Follower Combat Kills 2258 Registered with UFD 300 Met Optimus in HQ 500 Met Imprinter 300 Met Zhirov 300 Met Warlord at Base 500 MAIN.C Attacked Warlord 500 Warlord Defense Kills 2110 Met Optimus at Protoforge 1000 Friendly Fire -1005 Cogmind --------- Core Integrity 0/1550 Matter 550/550 Energy 150/150 System Corruption 0% Temperature Cool (0) Movement Hovering (48) Location -3/Protoforge Parts ------- > --- POWER (1) -------- Micro Antimatter Reactor > --- PROPULSION (5) --- Improved Antigrav System Improved Antigrav System Improved Antigrav System Improved Antigrav System > --- UTILITY (6) ------ Experimental Optical Array Advanced Target Analyzer Experimental Core Analyzer Improved Armor Integrity Analyzer Improved Phase Shifter Centrium Light Armor Plating > --- WEAPON (4) ------- Helical Railgun Helical Railgun Helical Railgun Helical Railgun > --- INVENTORY (7) ---- Improved Quantum Reactor Experimental Targeting Computer Advanced Kinecellerator Centrium Light Armor Plating Supercharged TR Overtuned Railgun Peak State ------------ > --- POWER ------------ Micro Antimatter Reactor > --- PROPULSION ------- Improved Antigrav System Improved Antigrav System Improved Antigrav System Improved Antigrav System Improved Antigrav System > --- UTILITY ---------- Experimental Optical Array Advanced Target Analyzer Experimental Core Analyzer Improved Armor Integrity Analyzer Improved Phase Shifter Centrium Light Armor Plating > --- WEAPON ----------- Helical Railgun Helical Railgun Helical Railgun Helical Railgun > --- INVENTORY -------- Improved Quantum Reactor Improved Antigrav System Experimental Targeting Computer Advanced Kinecellerator Centrium Light Armor Plating Supercharged TR Overtuned Railgun [Rating: 133] Favorites ----------- Power Antimatter Reactor Engine Subdweller Power Source Power Core Light Nuclear Core Reactor Antimatter Reactor Propulsion Gravmag Array Treads Light Treads Leg Advanced Myomer Leg Wheel Subdweller Monowheel Hover Unit Gravmag Array Utility Seismic Detector Device Seismic Detector Storage Improved Matter Compressor Processor Advanced Target Analyzer Hackware Advanced Hacking Suite Protection Hardened Medium Armor Plating Weapon Helical Railgun Energy Gun Plasma Rifle Energy Cannon Subdweller Beam Cannon Ballistic Gun Helical Railgun Ballistic Cannon Advanced Assault Cannon Launcher Missile Launcher Special Weapon Molecular Deconstructor Slashing Weapon Plasma Sword Piercing Weapon CR-A16's Pointy Stick Build | -11 -10 -10 -10 -9 -6 -6 -6 -6 -6 -6 -5 -5 -5 -5 -5 -5 -5 -4 -4 -4 -4 -4 -4 -4 -3 -3 -3 -3 ------- Run | Yrd Mat Min Sub Scr Fac Was Fac Low Low Zio Pro Fac Was Fac Upp Upp Zhi Pro Fac Was Fac Upp Upp War Pro Res Qua Frg Slots Evolved 12 | 3 . . . . 4 . 1 . . 1 . . . 1 . . . 1 . . . . . . . . . 1 Power . | . . . . . . . . . . . . . . . . . . . . . . . . . . . . . Propulsion 4 | 1 . . . . 2 . . . . 1 . . . . . . . . . . . . . . . . . . Utility 5 | 1 . . . . 2 . 1 . . . . . . . . . . 1 . . . . . . . . . . Weapon 3 | 1 . . . . . . . . . . . . . 1 . . . . . . . . . . . . . 1 Parts Attached 208 | 7 2 1 14 9 29 3 11 1 1 1 2 3 2 9 3 4 3 2 10 . 13 1 3 13 1 5 2 53 Power 24 | 1 1 . 1 2 6 1 1 . . . . 1 1 . . 1 . . . . 3 . 1 1 . . . 3 Engine 8 | 1 . . 1 2 2 . 1 . . . . 1 . . . . . . . . . . . . . . . . Core 5 | . 1 . . . 3 . . . . . . . . . . 1 . . . . . . . . . . . . Reactor 11 | . . . . . 1 1 . . . . . . 1 . . . . . . . 3 . 1 1 . . . 3 Propulsion 41 | 2 . . 4 5 7 1 2 . . . . . . 2 . . 1 . 1 . 2 . . 2 . 1 1 10 Treads 6 | 2 . . . 2 2 . . . . . . . . . . . . . . . . . . . . . . . Leg 1 | . . . . . . . . . . . . . . . . . 1 . . . . . . . . . . . Wheel 7 | . . . 4 2 1 . . . . . . . . . . . . . . . . . . . . . . . Hover 27 | . . . . 1 4 1 2 . . . . . . 2 . . . . 1 . 2 . . 2 . 1 1 10 Flight . | . . . . . . . . . . . . . . . . . . . . . . . . . . . . . Utility 82 | 2 . . 1 . 11 . 6 1 1 . 2 2 . 3 1 2 2 1 5 . 8 1 1 4 1 3 . 24 Device 33 | 2 . . . . 5 . 2 . . . . 1 . 3 1 . 1 1 3 . 3 1 1 1 1 2 . 5 Storage 3 | . . . . . . . . . . . . . . . . . 1 . . . . . . . . . . 2 Processor 18 | . . . . . 3 . 2 . . . 1 . . . . . . . 1 . 2 . . 3 . . . 6 Hackware 2 | . . . . . . . . . . . . . . . . . . . 1 . . . . . . . . 1 Protection 26 | . . . 1 . 3 . 2 1 1 . 1 1 . . . 2 . . . . 3 . . . . 1 . 10 Artifact . | . . . . . . . . . . . . . . . . . . . . . . . . . . . . . Weapon 61 | 2 1 1 8 2 5 1 2 . . 1 . . 1 4 2 1 . 1 4 . . . 1 6 . 1 1 16 Energy Gun 6 | . 1 . 2 1 . . . . . . . . . . . . . . . . . . . 2 . . . . Energy Cannon 3 | . . . 2 . . . . . . . . . . . . . . . . . . . . . . . . 1 Ballistic Gun 33 | 2 . . 2 . 4 . 1 . . . . . . 2 1 . . . 4 . . . 1 3 . 1 1 11 Ballistic Cannon 2 | . . . . . 1 . . . . . . . . . . . . . . . . . . . . . . 1 Launcher 6 | . . 1 1 . . 1 . . . . . . . . . . . 1 . . . . . 1 . . . 1 Special Weapon 1 | . . . . . . . . . . . . . . . 1 . . . . . . . . . . . . . Impact Weapon . | . . . . . . . . . . . . . . . . . . . . . . . . . . . . . Slashing Weapon 5 | . . . 1 1 . . . . . . . . . 2 . 1 . . . . . . . . . . . . Piercing Weapon 5 | . . . . . . . 1 . . 1 . . 1 . . . . . . . . . . . . . . 2 Special Melee Weapon . | . . . . . . . . . . . . . . . . . . . . . . . . . . . . . Unidentified Prototypes 42 | . . . . . 3 . 2 . . . . 1 1 2 1 . 3 . 1 . . . . 7 . 1 2 18 Parts Lost 13 | . . . . . 1 . 1 . . . . . . . . . . . . 1 . . . . . 1 1 8 Power . | . . . . . . . . . . . . . . . . . . . . . . . . . . . . . Propulsion 5 | . . . . . . . . . . . . . . . . . . . . . . . . . . . . 5 Utility 7 | . . . . . 1 . 1 . . . . . . . . . . . . . . . . . . 1 1 3 Weapon 1 | . . . . . . . . . . . . . . . . . . . . 1 . . . . . . . . Highest Loss Streak 2 | . . . . . 1 . 1 . . . . . . . . . . . . 1 . . . . . 1 1 2 To Critical Strikes . | . . . . . . . . . . . . . . . . . . . . . . . . . . . . . Average Backups 5 | 1 2 2 3 2 3 4 5 6 6 5 6 6 6 6 7 7 6 6 6 6 6 7 7 7 7 6 6 6 Power . | . . . . . . . . . . . . . . . . . . . . . . 1 1 1 1 1 1 1 Propulsion . | . . 1 1 . 1 1 1 1 1 . . . 1 1 1 1 1 1 1 2 1 1 1 . . . . . Utility 2 | . . . . 1 . 1 1 2 2 2 3 2 2 3 4 4 4 4 3 3 3 4 4 4 4 3 2 1 Weapon 1 | 1 1 1 1 . 1 2 2 3 3 2 3 3 3 2 2 2 1 1 2 1 1 1 1 1 2 2 2 2 Tool/Special . | . . . . . . . . . . . . . . . . . . . . . . . . . . . . . Unused Backups 38 | . 2 1 1 2 7 1 2 . . . 1 . . 5 . . . . 2 . 2 . . 1 . 2 3 6 Power 9 | . . . . . 3 . . . . . . . . 1 . . . . . . 1 . . . . 1 1 2 Propulsion 9 | . . 1 . . 2 1 2 . . . . . . 2 . . . . . . . . . . . . 1 . Utility 14 | . . . . 2 1 . . . . . 1 . . 2 . . . . 2 . 1 . . 1 . 1 . 3 Weapon 4 | . 2 . . . 1 . . . . . . . . . . . . . . . . . . . . . . 1 Tool/Special 2 | . . . 1 . . . . . . . . . . . . . . . . . . . . . . . 1 . Average Slot Usage (%) 92 | . 100 100 99 99 78 100 91 91 91 91 92 92 92 91 92 92 78 92 92 92 91 86 86 85 86 88 92 87 Engine 3 | . 3 . 11 14 1 . . . . . . 3 2 . . . . . . . . . . . . . . . Core 1 | . 10 14 2 . 3 4 . . . . . . . . . . . . . . . . . . . . . . Reactor 4 | . . . . . 4 4 8 8 8 7 7 3 5 7 7 7 7 6 6 5 6 6 6 6 6 6 6 6 Treads 4 | . 28 28 7 7 3 . . . . . . . . . . . . . . . . . . . . . . . Wheel 3 | . . . 20 11 3 . . . . . . . . . . . . . . . . . . . . . . . Hover 18 | . . . . 8 16 36 26 25 25 28 30 30 30 28 28 28 27 26 25 26 26 26 26 26 26 26 26 25 Device 14 | . 28 28 14 14 14 18 9 8 8 7 8 7 7 13 14 13 13 16 18 19 12 6 10 12 13 15 19 13 Processor 8 | . . . . . 4 9 12 16 16 15 18 23 23 14 14 14 14 13 7 6 12 13 13 13 13 13 13 13 Protection 8 | . . . 13 14 6 9 15 15 16 15 9 7 7 7 7 7 7 9 6 6 6 6 6 6 6 6 6 5 Energy Gun 3 | . 12 14 2 11 4 . . . . . . . . . . . . . . . . . . . . . . . Energy Cannon 2 | . . . 10 9 . . . . . . . . . . . . . . . . . . . . . . . . Ballistic Gun 12 | . 15 5 8 2 11 18 15 15 16 14 14 15 15 13 14 14 . 12 12 12 12 13 12 12 13 13 12 17 Launcher 1 | . . 8 4 1 . . . . . . . . . . . . . . . . . . . . . . . . Slashing Weapon 2 | . . . 2 3 . . . . . . . . . 3 7 7 7 6 6 6 6 6 6 5 6 5 6 2 Peak Build Rating 133 | 9 11 12 19 26 54 57 69 69 68 73 73 73 73 84 91 85 83 89 96 96 100 100 98 111 111 113 109 133 Average Rating 64 | 4 10 11 16 22 44 55 59 63 66 71 71 69 72 79 84 84 71 86 92 93 95 98 97 99 110 110 106 115 On Entrance 69 | . 9 11 12 17 26 54 57 69 63 68 73 71 69 73 84 85 84 83 86 96 93 100 98 98 111 111 107 109 Naked Turns . | . . . . . . . . . . . . . . . . . . . . . . . . . . . . . Heaviest Build 75 | 8 11 12 24 24 61 38 41 39 37 37 38 36 36 39 41 40 41 46 49 44 49 49 52 53 52 56 55 75 Greatest Support 75 | 40 40 40 40 43 48 47 51 51 51 62 62 62 62 62 60 60 60 60 61 61 62 62 62 62 62 62 75 75 Greatest Overweight (x) 5 | . . . 1 2 5 . . . . . . . . . . . 2 . . . . . . . . . 1 1 Average Overweight (x) . | . . . . . . . . . . . . . . . . . . . . . . . . . . . . . Largest Inventory Capacity 7 | 2 3 3 4 4 4 5 6 6 6 6 6 7 7 7 7 7 7 7 7 7 7 7 7 7 7 7 7 7 Average Capacity 5 | 1 2 3 3 4 4 4 5 6 6 6 6 6 7 7 7 7 7 7 7 7 7 7 7 7 7 7 7 7 Most Carried 7 | 2 2 3 4 4 4 5 6 6 6 6 6 7 7 7 7 7 7 7 7 7 7 7 7 7 7 7 7 7 Average Carried 5 | 1 1 2 3 3 3 4 5 5 6 5 5 6 6 6 7 6 6 6 6 6 6 7 6 6 7 6 6 6 Final Capacity 7 | 2 3 3 4 4 4 5 6 6 6 6 6 7 7 7 7 7 7 7 7 7 7 7 7 7 7 7 7 7 Final Carried 7 | 2 2 3 4 4 4 5 6 6 6 6 6 7 7 7 7 7 7 7 7 6 7 7 7 7 7 7 6 6 Class Distribution -------------------- 37% | Mutant 31% | Hacker-Scout 9% | Hacker-Mutant 8% | Scavenger-Scout 5% | Hacker-Ninja 3% | Scavenger-Mutant Dominant Class ---------------- Mutant | -10/Materials Mutant | -10/Mines Mutant | -10/Subcaves Mutant | -9/Scraptown Mutant | -6/Factory Scavenger-Mutant | -6/Waste Hacker-Mutant | -6/Factory Hacker-Mutant | -6/Lower Caves Hacker-Mutant | -6/Lower Caves Hacker-Mutant | -6/Zion Hacker-Mutant | -5/Proximity Caves Hacker-Scout | -5/Factory Hacker-Scout | -5/Waste Scavenger-Scout | -5/Factory Hacker-Scout | -5/Upper Caves Hacker-Scout | -5/Upper Caves Hacker-Scout | -5/Zhirov Hacker-Scout | -4/Proximity Caves Hacker-Scout | -4/Factory Hacker-Scout | -4/Waste Hacker-Scout | -4/Factory Hacker-Scout | -4/Upper Caves Hacker-Scout | -4/Upper Caves Hacker-Scout | -4/Warlord Hacker-Scout | -3/Proximity Caves Hacker-Scout | -3/Research Hacker-Ninja | -3/Quarantine Scavenger-Scout | -3/Protoforge Resources | -11 -10 -10 -10 -9 -6 -6 -6 -6 -6 -6 -5 -5 -5 -5 -5 -5 -5 -4 -4 -4 -4 -4 -4 -4 -3 -3 -3 -3 ----------- Run | Yrd Mat Min Sub Scr Fac Was Fac Low Low Zio Pro Fac Was Fac Upp Upp Zhi Pro Fac Was Fac Upp Upp War Pro Res Qua Frg Matter Collected 15920 | 314 204 95 407 130 2034 175 992 515 105 30 215 300 371 752 60 188 . 313 803 193 754 164 337 653 240 1052 205 4319 Remotely . | . . . . . . . . . . . . . . . . . . . . . . . . . . . . . Salvage Created 19524 | 142 587 250 446 . 2220 . 1224 521 . . 34 539 490 925 . 303 . 324 1342 . 1386 64 158 1080 304 1623 234 5328 Parts 1123 | 6 44 7 26 . 119 . 75 26 4 . 3 21 19 47 . 15 . 14 113 4 57 9 7 42 6 123 19 317 Haulers Intercepted 6 | . 1 . . . 3 . 1 . . . . . . . . . . . . . 1 . . . . . . . Recyclers Shooed 18 | 1 3 3 . . 7 . 2 . . . . . . . . . . . 1 . 1 . . . . . . . Parts Field Recycled . | . . . . . . . . . . . . . . . . . . . . . . . . . . . . . Retrieved Matter . | . . . . . . . . . . . . . . . . . . . . . . . . . . . . . Parts Self-Destructed 101 | . . . 4 . . . . 29 7 . 12 . . . . 14 . 11 . . . 9 4 . 11 . . . Prevented . | . . . . . . . . . . . . . . . . . . . . . . . . . . . . . Kills | -11 -10 -10 -10 -9 -6 -6 -6 -6 -6 -6 -5 -5 -5 -5 -5 -5 -5 -4 -4 -4 -4 -4 -4 -4 -3 -3 -3 -3 ------- Run | Yrd Mat Min Sub Scr Fac Was Fac Low Low Zio Pro Fac Was Fac Upp Upp Zhi Pro Fac Was Fac Upp Upp War Pro Res Qua Frg Combat Hostiles Destroyed 324 | . 12 6 12 . 27 . 21 14 2 . 3 5 2 6 . 2 . 6 26 1 18 5 6 14 4 31 7 94 Melee 6 | . . . . . . . . . . . . . . . . . . . . . . . . . . . . 6 Guns 245 | . 12 1 1 . 22 . 17 11 2 . . 5 2 6 . 2 . 2 18 1 9 1 1 12 4 31 3 82 Cannons 5 | . . . 5 . . . . . . . . . . . . . . . . . . . . . . . . . AOE 68 | . . 5 6 . 5 . 4 3 . . 3 . . . . . . 4 8 . 9 4 5 2 . . 4 6 Classes Destroyed 34 | 2 7 1 3 . 4 . 2 1 . . . . 1 . . . . . 1 . 3 1 . 2 . . . 6 Worker 23 | . 2 1 . . 5 . 3 . . . . 2 . . . . . . 6 . 1 . . . . 2 . 1 Builder 16 | . . . . . 3 . 1 . . . . . . . . . . . 6 . . . . . . 5 1 . Tunneler 5 | 2 . 1 . . 1 . . . . . . . . . . . . . . . 1 . . . . . . . Hauler 6 | . 1 . . . 3 . 1 . . . . . . . . . . . . . 1 . . . . . . . Recycler 19 | 1 1 2 . . 5 . 1 . . . . . . 2 . . . . 2 . 4 . . . . 1 . . Minesweeper 1 | . . . . . . . . . . . . . . . . . . . . . . 1 . . . . . . Mechanic 11 | . 1 . . . . . 1 . . . . . . . . . . . . . 1 . . . . . . 8 Operator 11 | . 1 . . . 1 . . . . . . 1 . 2 . . . . 1 . . . . . . . 2 3 Drone 8 | . . . . . . . . . . . . . . . . . . . . . . . . . . . . 8 Watcher 15 | . 3 . . . 2 . 1 . . . . . . 2 . . . . 1 . 2 . . . . 2 . 2 Swarmer 88 | . 6 1 . . 10 . 8 8 1 . 3 . . . . . . 5 11 . 5 4 5 . 1 5 5 10 Cutter 6 | . . . . . . . . . . . . . . . . . . . 6 . . . . . . . . . Saboteur 3 | . . . . . . . . . . . . . . . . . . . . . . . . . . . . 3 Grunt 77 | . 6 . 3 . 6 . 9 3 . . . 1 . . . . . . 4 . 7 . 1 4 1 14 . 18 Brawler 7 | . . . . . . . . . . . . . . . . . . . . . 1 . . 1 . . . 5 Duelist 3 | . . . . . . . . . . . . . . . . . . . . . 2 . . . . . . 1 Protector 8 | . . . . . . . . . . . . . . . . . . . . . 1 . . 1 . . . 6 Researcher 1 | . . . . . . . . . . . . . . . . . . . . . . . . . . . . 1 Sentry 18 | . . . . . 3 . 1 2 1 . . . . 2 . . . 1 . . 1 1 . . . 4 . 2 Specialist 3 | . . . . . . . . . . . . . . . . . . . . . . . . 3 . . . . Hunter 18 | . . . . . 3 . . . . . . 1 . 1 . 2 . . . . . . . 1 2 2 2 4 Programmer 35 | . . . . . 5 . 2 . . . . 2 . 3 . . . . 5 . 1 . . 3 . 6 . 8 Heavy 2 | . . . . . . . 1 . . . . 1 . . . . . . . . . . . . . . . . Compactor 3 | . . . . . . . . . . . . . 2 . . . . . . 1 . . . . . . . . Hotshot 3 | . . . . . . . . . . . . . . . . . . . . . . . . . . . . 3 Immortal 1 | . . . . . . . . . . . . . . . . . . . . . . . . . . . . 1 Striker 16 | . . . . . . . . . . . . . . . . . . . . . . . . . . . . 16 Executioner 8 | . . . . . . . . . . . . . . . . . . . . . . . . 1 . . . 7 Artisan 1 | . . . 1 . . . . . . . . . . . . . . . . . . . . . . . . . Cobbler 1 | . . . 1 . . . . . . . . . . . . . . . . . . . . . . . . . Subdweller 10 | . . . 10 . . . . . . . . . . . . . . . . . . . . . . . . . Elite 3 | . . . . . . . . . . . . . . . . . . . . . . . . . . . . 3 Scrapoid 1 | . . . . . . . . . . . . . . . . . . . . . . . . . . . . 1 Thief 1 | . . . . . . . . 1 . . . . . . . . . . . . . . . . . . . . Assembled 5 | . . 5 . . . . . . . . . . . . . . . . . . . . . . . . . . Martyr 1 | . . . . . . . 1 . . . . . . . . . . . . . . . . . . . . . Best Kill Streak 13 | 3 6 6 2 . 5 . 6 7 1 . 3 3 1 4 . 2 . 5 13 1 8 4 5 5 2 8 7 8 Combat Bots Only 10 | . 6 5 2 . 4 . 5 4 1 . 3 3 1 2 . 2 . 5 10 1 7 4 5 5 2 6 5 8 Max Kills in Single Turn 5 | 1 2 3 1 . 3 . 2 2 1 . 2 2 1 1 . 1 . 3 5 1 5 3 3 1 1 2 2 4 Gunslinging 2 | . . . . . . . . . . . . 1 . . . . . . 1 . . . . . . 1 . 2 Exploded 5 | . . 3 1 . 2 . 2 2 . . 2 . . . . . . 3 4 . 5 3 3 1 . . 2 3 Melee 1 | . . . . . . . . . . . . . . . . . . . . . . . . . . . . 1 Uniques/NPCs Destroyed . | . . . . . . . . . . . . . . . . . . . . . . . . . . . . . Combat | -11 -10 -10 -10 -9 -6 -6 -6 -6 -6 -6 -5 -5 -5 -5 -5 -5 -5 -4 -4 -4 -4 -4 -4 -4 -3 -3 -3 -3 -------- Run | Yrd Mat Min Sub Scr Fac Was Fac Low Low Zio Pro Fac Was Fac Upp Upp Zhi Pro Fac Was Fac Upp Upp War Pro Res Qua Frg Hostile Shots Fired 2100 | . 63 4 57 . 238 . 158 102 15 . 6 28 . 27 . 21 . 19 137 3 111 11 9 55 40 229 105 662 Missed 868 | . 16 1 17 . 89 . 63 51 6 . 4 14 . 13 . 7 . 9 62 1 46 7 4 34 23 113 47 241 Hits 1232 | . 47 3 40 . 149 . 95 51 9 . 2 14 . 14 . 14 . 10 75 2 65 4 5 21 17 116 58 421 Melee 20 | . . 2 . . . . . . . . . . . . . . . . 2 2 1 . . . . . . 13 Projectile 1212 | . 47 1 40 . 149 . 95 51 9 . 2 14 . 14 . 14 . 10 73 . 64 4 5 21 17 116 58 408 AOE 5 | . . . 1 . . . 1 . . . . . . . . . . . 1 . . . . . . . . 2 Critical Strikes 69 | . . . . . 4 . 3 . . . . . . . . 2 . . 3 2 5 1 . 1 1 8 2 37 Actively Blocked 16 | . . . . . . . . . . . . . . . . 2 . . 3 2 . . . 1 1 . . 7 Part Disruptions 3 | . . . . . . . . . . . 1 . . . . . . . . . 1 . . . . . . 1 Damage Taken 23010 | . 466 123 832 . 1787 56 1678 572 73 . 33 351 . 333 . 201 . 251 1408 165 1521 83 57 303 172 1855 685 10005 Core 15871 | . 377 96 623 . 1179 34 1069 324 45 . 25 231 . 222 . 118 . 202 987 130 1033 47 41 206 101 1201 515 7065 Absorbed by Shields 1198 | . . . . . . . . . . . . . . . . . . . . . . . . 78 146 397 32 545 Redirected to Core 12574 | . 284 96 455 . 984 12 816 286 45 . 25 231 . 185 . 100 . 127 811 130 994 47 32 201 74 915 422 5302 Redirected to Shielding 348 | . . . . . 22 . 112 40 . . . . . . . 17 . . . . . . . . . 121 . 36 Ignored by Resistances 3932 | . . 1 62 . 186 . 140 79 19 . 8 30 . 46 . 58 . 49 192 27 153 14 17 58 83 231 206 2273 Regen/Repaired (Parts) 462 | . . . . . . 2 . . . . . . . . . . . . 213 30 51 . . 20 . . 146 . Core Remaining (%) 86 | 100 . . . 70 . . . . . . 94 . . . . . . 93 . . . . . . 74 . . . Volleys Fired 1072 | 11 62 21 70 . 134 12 84 31 6 . 12 24 20 36 . 8 . 10 52 13 53 14 4 36 19 92 20 228 Largest 4 | 2 2 2 2 . 2 2 2 2 2 . 2 2 2 2 . 2 . 2 2 2 2 2 2 2 2 2 2 4 Hottest 152 | 40 70 70 140 . 108 66 66 63 63 . 66 63 66 66 . 68 . 68 70 70 68 68 68 73 76 76 76 152 Shots Fired 2178 | 22 124 22 89 . 257 22 160 60 12 . 20 48 39 69 . 17 . 21 100 26 97 25 5 69 38 183 38 615 Gun 2076 | 22 124 16 33 . 252 21 158 58 12 . 17 48 39 69 . 17 . 19 98 26 91 23 2 67 38 183 36 607 Cannon 44 | . . . 44 . . . . . . . . . . . . . . . . . . . . . . . . . Launcher 58 | . . 6 12 . 5 1 2 2 . . 3 . . . . . . 2 2 . 6 2 3 2 . . 2 8 Special . | . . . . . . . . . . . . . . . . . . . . . . . . . . . . . Kinetic 1919 | 22 72 1 19 . 176 21 158 58 12 . 17 48 39 69 . 17 . 19 98 26 91 23 2 67 38 183 36 607 Thermal 201 | . 52 15 58 . 76 . . . . . . . . . . . . . . . . . . . . . . . Explosive 58 | . . 6 12 . 5 1 2 2 . . 3 . . . . . . 2 2 . 6 2 3 2 . . 2 8 Electromagnetic . | . . . . . . . . . . . . . . . . . . . . . . . . . . . . . Robot Hit Streak 51 | 4 13 9 18 . 34 18 20 9 4 . 7 30 23 19 . 23 . 25 22 18 31 28 11 30 14 48 12 51 Robot Miss Streak 5 | 3 4 1 2 . 5 1 3 2 3 . 3 1 2 3 . . . 2 1 1 1 1 . 2 2 2 2 2 Penetration Max 3 | . . . . . 2 1 2 2 . . 1 1 1 1 . 1 . . 3 . 1 . . 2 . 2 1 2 Secondary Targets 57 | . 2 . . . 4 . 3 3 . . . 2 1 . . . . . 4 1 . . . 5 1 5 1 25 Max Gunslinging Chain 2 | . 1 . . . 1 . 1 1 . . . 1 1 . . . . . 1 1 . . . 1 1 1 1 2 Shots Hit Robots 1709 | 10 80 15 56 . 200 18 122 38 6 . 14 42 35 53 . 18 . 23 86 25 89 22 5 60 31 149 21 491 Core Hits 880 | 6 36 15 21 . 97 5 53 29 2 . 8 19 5 30 . 9 . 18 52 3 54 8 6 33 10 75 18 268 Critical Kills 115 | . 1 . . . 17 . 18 7 2 . . 3 2 7 . 2 . 2 8 1 6 . 1 11 . 3 1 23 Critical Parts Destroyed 159 | . 1 . . . 24 1 15 7 2 . 4 3 2 11 . 4 . 3 11 . 19 3 . 14 . 6 . 29 Critical Strikes 320 | . 8 . 1 . 49 4 34 15 4 . 4 6 12 19 . 7 . 8 19 1 27 5 1 26 . 9 1 60 Burn 13 | . 6 . 1 . 6 . . . . . . . . . . . . . . . . . . . . . . . Destroy 305 | . 2 . . . 43 4 34 15 4 . 4 6 12 19 . 6 . 8 19 1 27 5 1 26 . 9 1 59 Sever 1 | . . . . . . . . . . . . . . . . 1 . . . . . . . . . . . . Impale 1 | . . . . . . . . . . . . . . . . . . . . . . . . . . . . 1 Melee Attacks 222 | . . . 6 . . . 5 . . 11 . . . 58 1 4 . 6 49 1 17 2 2 1 . 18 16 25 Impact . | . . . . . . . . . . . . . . . . . . . . . . . . . . . . . Slashing 184 | . . . 6 . . . . . . . . . . 41 1 4 . 6 49 1 17 2 2 1 . 18 16 20 Piercing 38 | . . . . . . . 5 . . 11 . . . 17 . . . . . . . . . . . . . 5 Sneak Attacks 27 | . . . 1 . . . 1 . . . . . . 2 . . . . 7 . 4 1 . . . 2 . 9 Combat Hostiles 1 | . . . . . . . . . . . . . . . . . . . . . . . . . . . . 1 Follow-up Attacks . | . . . . . . . . . . . . . . . . . . . . . . . . . . . . . Damage Inflicted 55347 | 100 1043 566 1752 . 3919 144 2154 869 69 . 254 781 309 877 . 520 . 999 3919 682 4067 738 674 1685 838 6049 1141 21198 Guns 41681 | 100 1043 148 335 . 3327 120 1543 647 69 . 112 781 309 515 . 281 . 127 2068 682 1615 364 8 1309 838 5861 755 18724 Cannons 666 | . . . 641 . . . . . . . . . . . . . . . . . . . . . . . . 25 Explosions 9231 | . . 415 683 . 592 24 529 222 . . 142 . . 40 . . . 391 1083 . 2000 267 556 376 . . 386 1525 Melee 3658 | . . . 93 . . . 82 . . . . . . 322 . 239 . 481 768 . 373 107 110 . . 188 . 895 Ramming 111 | . . 3 . . . . . . . . . . . . . . . . . . 79 . . . . . . 29 Kinetic 39442 | 100 555 10 152 . 1897 120 1543 647 69 . 112 781 309 515 . 281 . 127 2068 682 1615 364 8 1309 838 5861 755 18724 Thermal 3896 | . 488 138 824 . 1693 . . . . . . . . . . . . . 508 . 245 . . . . . . . Explosive 8171 | . . 415 683 . 329 24 529 222 . . 142 . . . . . . 391 575 . 1751 267 556 376 . . 386 1525 Electromagnetic 44 | . . . . . . . . . . . . . . 40 . . . . . . 4 . . . . . . . Impact 25 | . . . . . . . . . . . . . . . . . . . . . . . . . . . . 25 Slashing 3067 | . . . 93 . . . . . . . . . . 149 . 239 . 481 768 . 373 107 110 . . 188 . 559 Piercing 591 | . . . . . . . 82 . . . . . . 173 . . . . . . . . . . . . . 336 Highest Corruption 25 | . . . . . 3 19 21 21 21 21 . 2 19 20 14 8 8 8 4 19 25 25 25 25 3 17 17 21 Average Corruption 13 | . . . . . 2 11 19 21 21 21 . 1 10 14 10 8 8 8 2 13 20 25 25 5 3 9 17 15 Corruption Purged 50 | . . . . . 3 . . . . . . . . 10 6 . . . . . . . . . . . . 31 Corruption Blocked . | . . . . . . . . . . . . . . . . . . . . . . . . . . . . . Effects 444 | . . . . . 17 8 62 15 6 1 . . 7 54 8 16 6 13 15 10 33 25 19 3 6 20 30 70 Message Errors 113 | . . . . . 5 2 13 2 2 . . . 2 11 . 2 . 4 3 3 11 5 6 1 2 5 10 24 Matter Fused 113 | . . . . . 4 3 16 4 2 . . . . 15 1 6 4 4 5 1 7 7 4 1 2 4 7 16 Heat Flow Errors 51 | . . . . . 2 . 4 2 1 . . . 1 8 1 2 2 . 2 2 3 4 2 . 1 4 6 4 Energy Discharges 40 | . . . . . 2 1 7 2 . . . . 1 5 1 1 . 1 . 1 4 2 2 . 1 1 . 8 Parts Rejected 11 | . . . . . . . 2 1 . . . . 1 . . . . . 1 1 1 . . . . 1 . 3 Parts Fused 1 | . . . . . . . . . . . . . . . . . . . . . . . . . . . 1 . Data Loss (minor) 40 | . . . . . 2 1 5 2 . . . . . 8 3 3 . 1 . 1 3 3 3 . . . 1 4 Data Loss (major) 18 | . . . . . 2 . 1 . 1 . . . . 2 2 . . 1 2 . . 1 2 1 . . 1 2 Misfires 9 | . . . . . . . 2 . . . . . . 1 . 1 . 2 1 . . 1 . . . 1 . . Alerts 8 | . . . . . . . 1 2 . 1 . . . . . 1 . . . . 1 . . . . . 1 1 Misdirections 18 | . . . . . . . 3 . . . . . 1 . . . . . . 1 2 1 . . . 2 3 5 Weapon Failures 22 | . . . . . . 1 8 . . . . . 1 4 . . . . 1 . 1 1 . . . 2 . 3 Overload Shots . | . . . . . . . . . . . . . . . . . . . . . . . . . . . . . Overflow Damage 1334 | . . 33 . . 57 . 36 . . . . . . 8 . . . 211 271 . 321 88 28 . . . 13 268 Projectiles . | . . . . . . . . . . . . . . . . . . . . . . . . . . . . . Explosions 440 | . . 33 . . 57 . 5 . . . . . . . . . . 14 80 . 173 21 28 . . . 13 16 Melee 894 | . . . . . . . 31 . . . . . . 8 . . . 197 191 . 148 67 . . . . . 252 Knockbacks 2 | . . . . . . . . . . . . . . . . . . . . . 2 . . . . . . . Impact 1 | . . . . . . . . . . . . . . . . . . . . . 1 . . . . . . . Kinetic . | . . . . . . . . . . . . . . . . . . . . . . . . . . . . . Secondary 1 | . . . . . . . . . . . . . . . . . . . . . 1 . . . . . . . Self-Inflicted Damage 484 | . . 54 8 . 20 5 68 23 . . . . . . . . . 93 160 . 39 . . . . . . 14 Shots 11 | . . 2 1 . 1 1 1 1 . . . . . . . . . 2 2 . . . . . . . . . Rammed 4 | . . 1 . . . . . . . . . . . . . . . . . . 1 . . . . . . 2 Targets Rammed 4 | . . 1 . . . . . . . . . . . . . . . . . . 1 . . . . . . 2 Kicked . | . . . . . . . . . . . . . . . . . . . . . . . . . . . . . Crushed . | . . . . . . . . . . . . . . . . . . . . . . . . . . . . . Highest Temperature 682 | . 43 6 . . 207 . 262 241 140 . 11 . 246 219 91 135 165 . 215 221 257 263 196 . 87 197 209 682 Average Temperature 71 | . 18 2 . . 31 . 61 114 80 . 6 . 122 82 56 63 78 . 106 111 97 111 92 . 58 100 103 247 Received Heat Transfer 3837 | . 159 . 108 . 123 . 414 84 18 . 20 . . 45 . . . . 180 . 220 45 . 58 4 209 13 2137 Effects 5 | . . . . . . . . . . . . . 1 . . . . . . . . . . . . . . 4 Shutdowns 1 | . . . . . . . . . . . . . . . . . . . . . . . . . . . . 1 Energy Bleed 1 | . . . . . . . . . . . . . 1 . . . . . . . . . . . . . . . Matter Decay 1 | . . . . . . . . . . . . . . . . . . . . . . . . . . . . 1 Damage (minor) 1 | . . . . . . . . . . . . . . . . . . . . . . . . . . . . 1 Damage (core) 1 | . . . . . . . . . . . . . . . . . . . . . . . . . . . . 1 Siege Activations . | . . . . . . . . . . . . . . . . . . . . . . . . . . . . . Martial Activations . | . . . . . . . . . . . . . . . . . . . . . . . . . . . . . Shielding Activations . | . . . . . . . . . . . . . . . . . . . . . . . . . . . . . Robots Disrupted . | . . . . . . . . . . . . . . . . . . . . . . . . . . . . . Combat Hostiles . | . . . . . . . . . . . . . . . . . . . . . . . . . . . . . Robots Corrupted 1 | . . . . . . . . . . . . . . . . . . . . . 1 . . . . . . . Combat Hostiles . | . . . . . . . . . . . . . . . . . . . . . . . . . . . . . Parts Fried 3 | . . . . . . . . . . . . . . . . . . . . . 2 . . . . . . 1 Impact Corruptions 1 | . . . . . . . . . . . . . . . . . . . . . 1 . . . . . . . Robots Melted . | . . . . . . . . . . . . . . . . . . . . . . . . . . . . . Combat Hostiles . | . . . . . . . . . . . . . . . . . . . . . . . . . . . . . Parts Melted 25 | . 5 1 4 . 14 . 1 . . . . . . . . . . . . . . . . . . . . . Heat Transferred 7780 | . 1813 407 1260 . 3750 . . . . . . . . . . . . . 400 . 150 . . . . . . . Parts Sabotaged 1 | . . . . . . . . . . . . . . . . . . . . . . . . . . . . 1 Parts Stolen . | . . . . . . . . . . . . . . . . . . . . . . . . . . . . . Parts Stripped . | . . . . . . . . . . . . . . . . . . . . . . . . . . . . . Power Chain Reactions 2 | . . . . . . . . . . . . . . . . . . . 2 . . . . . . . . . Alert | -11 -10 -10 -10 -9 -6 -6 -6 -6 -6 -6 -5 -5 -5 -5 -5 -5 -5 -4 -4 -4 -4 -4 -4 -4 -3 -3 -3 -3 ------- Run | Yrd Mat Min Sub Scr Fac Was Fac Low Low Zio Pro Fac Was Fac Upp Upp Zhi Pro Fac Was Fac Upp Upp War Pro Res Qua Frg Maximum Alert Level 5 | . 1 . . . 3 1 3 . . . . . . 1 . . . . 3 1 5 . . . . 3 2 5 Low Security (%) 46 | 100 99 100 . . 53 . 37 . . . . 100 100 94 . . . . 23 . . . . . . 34 . 13 Level 1 14 | . . . . . 6 100 9 . . . . . . 5 . . . . 1 100 5 . . . . 21 27 31 Level 2 10 | . . . . . 26 . 8 . . . . . . . . . . . 3 . 3 . . . . 23 72 6 Level 3 19 | . . . . . 13 . 43 . . . . . . . . . . . 71 . 45 . . . . 20 . 19 Level 4 5 | . . . . . . . . . . . . . . . . . . . . . 29 . . . . . . 17 Level 5 3 | . . . . . . . . . . . . . . . . . . . . . 15 . . . . . . 10 High Security . | . . . . . . . . . . . . . . . . . . . . . . . . . . . . . Max Security . | . . . . . . . . . . . . . . . . . . . . . . . . . . . . . Peak Influence 2092 | 10 206 30 . . 882 315 1083 . . . . 70 8 233 . . . . 1080 376 1708 . . . . 751 494 2092 Initial 422 | . . . . . . 307 147 . . . . 49 8 . . . . . 2 376 219 . . . . . 422 254 Average 426 | 1 75 1 . . 288 265 538 . . . . 31 1 96 . . . . 682 343 1148 . . . . 358 412 752 Influence Increases 14098 | 15 425 88 53 . 1381 64 1526 270 55 . 305 234 . 620 . 65 . 145 1720 48 1955 115 135 391 126 1108 476 2778 Destroy 0b10 Robot/C 6760 | . 240 20 40 . 680 . 640 260 40 . 200 120 . 120 . 40 . 120 580 . 640 100 120 320 100 620 140 1620 Destroy 0b10 Robot/NC 670 | 15 45 20 . . 110 5 40 . . . . 15 . 30 . 15 . 15 80 . 60 5 5 5 . 50 15 140 Destroy Leader 1224 | . 58 10 10 . 192 . 144 10 . . 30 40 . 44 . 10 . 10 92 . 116 10 10 . 10 114 20 294 Allied During Kill 795 | . . . 3 . 138 5 319 . . . 60 13 . . . . . . . . 185 . . 51 16 5 . . Successful Hack 441 | . 19 . . . 63 . 45 . . . . 25 . 131 . . . . 61 . 22 . . . . 2 63 10 Select Force Hacks 50 | . . . . . . . . . . . . . . . . . . . 50 . . . . . . . . . Disable Machine 1530 | . 15 . . . 135 . 255 . . . . 15 . 120 . . . . 255 . 435 . . . . 15 150 135 Anti-Garrison Action 150 | . . . . . . . . . . . . . . . . . . . . . 150 . . . . . . . Destroy Structure 1578 | . 3 23 . . 48 54 38 . . . . 6 . 100 . . . . 302 48 332 . . . . 182 88 354 Partial Spotted 30 | . . . . . . . . . . . . . . 15 . . . . 15 . . . . . . . . . Lose Combat Pursuer 870 | . 45 15 . . 15 . 45 . 15 . 15 . . 60 . . . . 285 . 15 . . 15 . 120 . 225 Influence Decreases 12007 | 15 423 90 53 . 502 732 658 540 214 650 226 289 24 391 225 69 . 140 649 810 577 841 382 839 397 357 775 1139 Entered New Map 5101 | . . 2 . . . 572 64 400 154 650 . 30 16 . 85 2 . . 3 700 95 627 184 719 271 . 329 198 Time Decay 5635 | 15 423 88 53 . 421 80 474 140 60 . 186 199 8 391 140 67 . 140 436 100 302 214 198 80 106 327 286 701 Lost Part 130 | . . . . . 10 . 10 . . . . . . . . . . . . 10 . . . . . 10 10 80 Lost Ally 691 | . . . . . 71 80 110 . . . 40 60 . . . . . . 60 . 180 . . 40 20 20 . 10 Purge Threat 450 | . . . . . . . . . . . . . . . . . . . 150 . . . . . . . 150 150 Squads Dispatched 95 | . 2 1 . . 11 . 12 . . . . 3 . 12 . . . . 19 . 15 . . . . 6 5 9 Investigation 43 | . 1 1 . . 5 . 4 . . . . 2 . 9 . . . . 8 . 4 . . . . 3 2 4 Extermination 15 | . . . . . 4 . 2 . . . . . . 2 . . . . 3 . 1 . . . . 1 1 1 Reinforcement 25 | . 1 . . . 2 . 6 . . . . 1 . 1 . . . . 5 . 2 . . . . 1 2 4 Assault 8 | . . . . . . . . . . . . . . . . . . . 3 . 4 . . . . 1 . . Garrison 4 | . . . . . . . . . . . . . . . . . . . . . 4 . . . . . . . Intercept . | . . . . . . . . . . . . . . . . . . . . . . . . . . . . . Searches Triggered . | . . . . . . . . . . . . . . . . . . . . . . . . . . . . . Construction Impeded 6 | . . . . . . . 2 . . . . . . . . . . . 2 . 1 . . . . 1 . . Haulers Reinforced . | . . . . . . . . . . . . . . . . . . . . . . . . . . . . . Active Scanning Responses . | . . . . . . . . . . . . . . . . . . . . . . . . . . . . . Cargo Convoy Interrupts . | . . . . . . . . . . . . . . . . . . . . . . . . . . . . . Stealth | -11 -10 -10 -10 -9 -6 -6 -6 -6 -6 -6 -5 -5 -5 -5 -5 -5 -5 -4 -4 -4 -4 -4 -4 -4 -3 -3 -3 -3 --------- Run | Yrd Mat Min Sub Scr Fac Was Fac Low Low Zio Pro Fac Was Fac Upp Upp Zhi Pro Fac Was Fac Upp Upp War Pro Res Qua Frg Distress Signals 30 | . . . . . 6 . 3 . . . . 1 . . . . . . 2 . 4 . . . . 1 3 10 Communications Jammed . | . . . . . . . . . . . . . . . . . . . . . . . . . . . . . Distress Signals . | . . . . . . . . . . . . . . . . . . . . . . . . . . . . . Times Spotted 698 | . 21 10 20 . 43 5 47 15 2 . 8 7 6 20 . 2 . 6 59 10 32 5 5 51 5 50 26 243 Peak Tracking Total 17 | . 6 10 2 . 5 3 5 7 1 . 5 4 4 4 . 2 . 5 13 6 8 4 5 17 3 8 9 17 Tactical Retreats 43 | . 1 1 . . 1 . 2 . 1 . 1 . . 1 . . . . 8 1 1 . . 1 . 4 7 13 Traps | -11 -10 -10 -10 -9 -6 -6 -6 -6 -6 -6 -5 -5 -5 -5 -5 -5 -5 -4 -4 -4 -4 -4 -4 -4 -3 -3 -3 -3 ------- Run | Yrd Mat Min Sub Scr Fac Was Fac Low Low Zio Pro Fac Was Fac Upp Upp Zhi Pro Fac Was Fac Upp Upp War Pro Res Qua Frg Traps Triggered 18 | . 1 . . . 2 . 4 . . . . 1 . 1 . . . . 3 . 1 . . . . 1 1 3 Indirectly . | . . . . . . . . . . . . . . . . . . . . . . . . . . . . . Trap Hack Attempts . | . . . . . . . . . . . . . . . . . . . . . . . . . . . . . Triggered . | . . . . . . . . . . . . . . . . . . . . . . . . . . . . . Disarmed . | . . . . . . . . . . . . . . . . . . . . . . . . . . . . . Reprogrammed . | . . . . . . . . . . . . . . . . . . . . . . . . . . . . . Reused . | . . . . . . . . . . . . . . . . . . . . . . . . . . . . . Traps Extracted . | . . . . . . . . . . . . . . . . . . . . . . . . . . . . . Installed . | . . . . . . . . . . . . . . . . . . . . . . . . . . . . . Triggered . | . . . . . . . . . . . . . . . . . . . . . . . . . . . . . Machines | -11 -10 -10 -10 -9 -6 -6 -6 -6 -6 -6 -5 -5 -5 -5 -5 -5 -5 -4 -4 -4 -4 -4 -4 -4 -3 -3 -3 -3 ---------- Run | Yrd Mat Min Sub Scr Fac Was Fac Low Low Zio Pro Fac Was Fac Upp Upp Zhi Pro Fac Was Fac Upp Upp War Pro Res Qua Frg Machines Disabled 108 | . 1 . 1 . 9 . 17 . . . . 1 . 8 1 . . . 17 . 30 . . . . 1 10 12 Max in Single Turn 19 | . 1 . 1 . 4 . 3 . . . . 1 . 4 1 . . . 6 . 19 . . . . 1 2 2 Garrison Access 7 | . . . . . . . 1 . . . . . . 2 . . . . 1 . 1 . . . . . 1 1 Machines Repaired . | . . . . . . . . . . . . . . . . . . . . . . . . . . . . . Machines Dismantled . | . . . . . . . . . . . . . . . . . . . . . . . . . . . . . Machines Sabotaged . | . . . . . . . . . . . . . . . . . . . . . . . . . . . . . Overloaded Fab Kills 4 | . . . . . . . . . . . . . . . . . . . 4 . . . . . . . . . Hacking | -11 -10 -10 -10 -9 -6 -6 -6 -6 -6 -6 -5 -5 -5 -5 -5 -5 -5 -4 -4 -4 -4 -4 -4 -4 -3 -3 -3 -3 --------- Run | Yrd Mat Min Sub Scr Fac Was Fac Low Low Zio Pro Fac Was Fac Upp Upp Zhi Pro Fac Was Fac Upp Upp War Pro Res Qua Frg Machines Accessed 127 | . 8 1 2 2 17 . 11 . . . . 4 . 22 . . 6 . 19 . 6 1 1 3 . 3 11 10 Terminals 52 | . 6 . . . 7 . 4 . . . . 2 . 9 . . . . 8 . 2 . . . . 2 8 4 Fabricators 14 | . . . . . 2 . 2 . . . . 1 . 2 . . . . 2 . 1 . . . . . . 4 Repair Stations 8 | . . . . . 2 . . . . . . 1 . . . . . . 1 . 2 . . . . . 2 . Recycling Units 26 | . 2 . . . 4 . 4 . . . . . . 7 . . . . 6 . 1 . . . . 1 . 1 Scanalyzers 3 | . . . . . 1 . . . . . . . . 1 . . . . 1 . . . . . . . . . Garrison Access 8 | . . . . . 1 . 1 . . . . . . 3 . . . . 1 . . . . . . . 1 1 Total Hacks 339 | . 28 1 5 7 34 . 26 . . . . 13 . 69 . . 19 . 45 . 13 1 1 8 . 13 26 30 Successful 193 | . 18 1 5 7 15 . 12 . . . . 3 . 32 . . 19 . 30 . 11 1 1 8 . 5 12 13 Failed 145 | . 9 . . . 19 . 14 . . . . 10 . 37 . . . . 15 . 2 . . . . 8 14 17 Catastrophic 19 | . . . . . 3 . 3 . . . . 2 . 2 . . . . 4 . . . . . . . 4 1 Database Lockouts 1 | . 1 . . . . . . . . . . . . . . . . . . . . . . . . . . . Manual 193 | . 17 . . . 18 . 18 . . . . 7 . 43 1 . . . 31 . 10 . . 1 . 8 13 26 Terminals 171 | . 25 . . . 17 . 10 . . . . 7 . 29 . . . . 27 . 6 . . . . 10 21 19 Fabricators 33 | . . . . . 3 . 7 . . . . 2 . 7 . . . . 4 . 3 . . . . . . 7 Repair Stations 14 | . . . . . 3 . . . . . . 4 . . . . . . 2 . 2 . . . . . 3 . Recycling Units 55 | . 3 . . . 7 . 7 . . . . . . 21 . . . . 9 . 2 . . . . 3 . 3 Scanalyzers 6 | . . . . . 1 . . . . . . . . 3 . . . . 2 . . . . . . . . . Garrison Access 18 | . . . . . 3 . 2 . . . . . . 9 . . . . 1 . . . . . . . 2 1 Terminal Hacks 74 | . 9 1 5 7 1 . . . . . . 1 . 3 . . 19 . 8 . 1 1 1 8 . 2 4 3 Record 17 | . . . 4 . . . . . . . . . . . . . 7 . . . . . . 2 . . 3 1 Part Schematic 4 | . . . . . . . . . . . . . . . . . 4 . . . . . . . . . . . Robot Analysis 12 | . 2 . . 6 . . . . . . . . . . . . 4 . . . . . . . . . . . Prototype ID Bank 14 | . 4 . . . . . . . . . . . . . . . 4 . . . . . . 5 . 1 . . Open Door 4 | . . 1 . . . . . . . . . . . . . . . . . . . 1 1 1 . . . . Branch Access Points 3 | . . . . . . . . . . . . . . 1 . . . . 1 . . . . . . 1 . . Terminal Index 3 | . 1 . . . . . . . . . . . . 1 . . . . 1 . . . . . . . . . Unreport Threat 3 | . . . . . . . . . . . . . . . . . . . 1 . . . . . . . 1 1 Locate Traps 9 | . 1 . . . 1 . . . . . . 1 . 1 . . . . 3 . 1 . . . . . . 1 Transport Status 1 | . . . . . . . . . . . . . . . . . . . 1 . . . . . . . . . Hauler Manifests 2 | . 1 . . . . . . . . . . . . . . . . . 1 . . . . . . . . . Proto ID Catalog 2 | . . . 1 1 . . . . . . . . . . . . . . . . . . . . . . . . Fabricator Hacks 6 | . . . . . 1 . 1 . . . . . . 1 . . . . . . 1 . . . . . . 2 Network Status 4 | . . . . . 1 . 1 . . . . . . 1 . . . . . . 1 . . . . . . . Load Schematic 1 | . . . . . . . . . . . . . . . . . . . . . . . . . . . . 1 Build 1 | . . . . . . . . . . . . . . . . . . . . . . . . . . . . 1 Repair Station Hacks 4 | . . . . . . . . . . . . . . . . . . . 2 . . . . . . . 2 . Scan Component 2 | . . . . . . . . . . . . . . . . . . . 1 . . . . . . . 1 . Repair 2 | . . . . . . . . . . . . . . . . . . . 1 . . . . . . . 1 . Recycling Unit Hacks 9 | . 1 . . . 2 . 1 . . . . . . 2 . . . . 2 . 1 . . . . . . . Retrieve Components 9 | . 1 . . . 2 . 1 . . . . . . 2 . . . . 2 . 1 . . . . . . . Scanalyzer 5 | . . . . . . . . . . . . . . 3 . . . . 2 . . . . . . . . . Insert Component 2 | . . . . . . . . . . . . . . 1 . . . . 1 . . . . . . . . . Analyze 3 | . . . . . . . . . . . . . . 2 . . . . 1 . . . . . . . . . Garrison Access Hacks 6 | . . . . . . . 1 . . . . . . 2 . . . . 1 . . . . . . . 1 1 Seal Access 6 | . . . . . . . 1 . . . . . . 2 . . . . 1 . . . . . . . 1 1 Unauthorized Hacks 89 | . 8 . . . 11 . 9 . . . . 2 . 21 . . . . 15 . 8 . . . . 3 5 7 Terminals 46 | . 8 . . . 5 . 2 . . . . 2 . 10 . . . . 6 . 3 . . . . 2 4 4 Track 1 | . . . . . . . . . . . . . . . . . . . . . 1 . . . . . . . Assimilate 3 | . . . . . 1 . 1 . . . . . . . . . . . . . . . . . . . . 1 Botnet 28 | . 3 . . . 4 . 1 . . . . 2 . 4 . . . . 5 . 1 . . . . 1 4 3 Skim 14 | . 5 . . . . . . . . . . . . 6 . . . . 1 . 1 . . . . 1 . . Fabricators 16 | . . . . . . . 4 . . . . . . 5 . . . . 3 . 2 . . . . . . 2 Report 3 | . . . . . . . 1 . . . . . . 2 . . . . . . . . . . . . . . Liberate 7 | . . . . . . . 2 . . . . . . 2 . . . . 1 . 1 . . . . . . 1 Haulers 4 | . . . . . . . 1 . . . . . . 1 . . . . 1 . 1 . . . . . . . Overload 1 | . . . . . . . . . . . . . . . . . . . 1 . . . . . . . . . Recompile 1 | . . . . . . . . . . . . . . . . . . . . . . . . . . . . 1 Repair Stations 4 | . . . . . 1 . . . . . . . . . . . . . . . 2 . . . . . 1 . Mechanics 1 | . . . . . 1 . . . . . . . . . . . . . . . . . . . . . . . Patch 3 | . . . . . . . . . . . . . . . . . . . . . 2 . . . . . 1 . Recycling Units 22 | . . . . . 4 . 3 . . . . . . 6 . . . . 6 . 1 . . . . 1 . 1 Fedlink 22 | . . . . . 4 . 3 . . . . . . 6 . . . . 6 . 1 . . . . 1 . 1 Scanalyzers . | . . . . . . . . . . . . . . . . . . . . . . . . . . . . . Garrison Access 1 | . . . . . 1 . . . . . . . . . . . . . . . . . . . . . . . Reprogram 1 | . . . . . 1 . . . . . . . . . . . . . . . . . . . . . . . Data Cores Recovered 3 | . . . . . . . . . . . . 1 . 2 . . . . . . . . . . . . . . Used 2 | . . . . . . . . . . . . . . 2 . . . . . . . . . . . . . . Hacking Detections 80 | . 6 . . . 13 . 9 . . . . 4 . 18 . . . . 9 . 3 . . . . 3 8 7 Full Trace Events 10 | . . . . . 1 . 1 . . . . 2 . 3 . . . . 1 . . . . . . . 1 1 Feedback Events 1 | . . . . . . . . . . . . . . 1 . . . . . . . . . . . . . . Corruption 1 | . . . . . . . . . . . . . . 1 . . . . . . . . . . . . . . Feedback Blocked . | . . . . . . . . . . . . . . . . . . . . . . . . . . . . . Robot Schematics Acquired . | . . . . . . . . . . . . . . . . . . . . . . . . . . . . . Robots Built . | . . . . . . . . . . . . . . . . . . . . . . . . . . . . . Authchips . | . . . . . . . . . . . . . . . . . . . . . . . . . . . . . Time . | . . . . . . . . . . . . . . . . . . . . . . . . . . . . . Total Robot Build Rating . | . . . . . . . . . . . . . . . . . . . . . . . . . . . . . Part Schematics Acquired 6 | . . . . . . . . . . . . . . 1 . . 4 . 1 . . . . . . . . . Parts Built 2 | . . . . . . . . . . . . . . . . . . . . . . . . . . . . 2 Authchips 1 | . . . . . . . . . . . . . . . . . . . . . . . . . . . . 1 Time 31 | . . . . . . . . . . . . . . . . . . . . . . . . . . . . 31 Total Part Build Rating 10 | . . . . . . . . . . . . . . . . . . . . . . . . . . . . 10 Parts Repaired 2 | . . . . . . . . . . . . . . . . . . . 1 . . . . . . . 1 . Time 39 | . . . . . . . . . . . . . . . . . . . 19 . . . . . . . 20 . Parts Recycled . | . . . . . . . . . . . . . . . . . . . . . . . . . . . . . Recycled Matter . | . . . . . . . . . . . . . . . . . . . . . . . . . . . . . Retrieved Matter . | . . . . . . . . . . . . . . . . . . . . . . . . . . . . . Retrieved Components 42 | . 2 . . . 12 . 2 . . . . . . 13 . . . . 3 . 10 . . . . . . . Parts Scanalyzed 2 | . . . . . . . . . . . . . . 1 . . . . 1 . . . . . . . . . Part Schematics Acquired 2 | . . . . . . . . . . . . . . 1 . . . . 1 . . . . . . . . . Parts Damaged . | . . . . . . . . . . . . . . . . . . . . . . . . . . . . . Bothacking | -11 -10 -10 -10 -9 -6 -6 -6 -6 -6 -6 -5 -5 -5 -5 -5 -5 -5 -4 -4 -4 -4 -4 -4 -4 -3 -3 -3 -3 ------------ Run | Yrd Mat Min Sub Scr Fac Was Fac Low Low Zio Pro Fac Was Fac Upp Upp Zhi Pro Fac Was Fac Upp Upp War Pro Res Qua Frg Used RIF Installer . | . . . . . . . . . . . . . . . . . . . . . . . . . . . . . Robots Hacked . | . . . . . . . . . . . . . . . . . . . . . . . . . . . . . Non-combat . | . . . . . . . . . . . . . . . . . . . . . . . . . . . . . Combat . | . . . . . . . . . . . . . . . . . . . . . . . . . . . . . Robot Hacks Applied . | . . . . . . . . . . . . . . . . . . . . . . . . . . . . . Relay Couplers Released 1 | . . . . . . . 1 . . . . . . . . . . . . . . . . . . . . . Machine Destruction 1 | . . . . . . . 1 . . . . . . . . . . . . . . . . . . . . . Fabnet Peak Effective % . | . . . . . . . . . . . . . . . . . . . . . . . . . . . . . Robots Rewired 5 | . . . . . . . . . . . . . . . . . . . . . . . . 5 . . . . Allies Hacked 3 | . . . . . . . 1 . . . . . . . . . . . . . . . . . . 2 . . Hacks Repelled . | . . . . . . . . . . . . . . . . . . . . . . . . . . . . . Allies | -11 -10 -10 -10 -9 -6 -6 -6 -6 -6 -6 -5 -5 -5 -5 -5 -5 -5 -4 -4 -4 -4 -4 -4 -4 -3 -3 -3 -3 -------- Run | Yrd Mat Min Sub Scr Fac Was Fac Low Low Zio Pro Fac Was Fac Upp Upp Zhi Pro Fac Was Fac Upp Upp War Pro Res Qua Frg Total Allies 62 | . . 3 . . 5 19 . . . 6 . . 1 . . . . . 3 19 . . . 5 . . . 1 Largest Group 20 | . . 3 3 1 5 20 12 . . 6 6 4 1 . . . . . 3 19 11 . . 5 3 2 . 1 Highest-Rated Group 731 | . . 40 40 16 235 731 473 . . 171 171 107 28 . . . . . 90 684 480 . . 289 177 128 . 26 Highest-Rated Ally 64 | . . 16 16 16 47 50 46 . . 31 31 31 28 . . . . . 30 50 50 . . 64 64 64 . 26 Total Orders . | . . . . . . . . . . . . . . . . . . . . . . . . . . . . . Ally Attacks 614 | . . . 59 . 59 122 81 . . . 45 9 1 . . . . . 10 126 78 . . 19 5 . . . Total Damage 20146 | . . . 621 . 1251 4890 2092 . . . 830 127 11 . . . . . 236 5877 3200 . . 878 133 . . . Kills 84 | . . . 7 . 9 11 13 . . . 7 1 . . . . . . 3 13 16 . . 3 1 . . . Allies Corrupted 4 | . . . . . . . 1 . . . . . . . . . . . . . 3 . . . . . . . Allies Melted 3 | . . . . . . . . . . . . . . . . . . . . . . . . 1 . . . 2 Intel | -11 -10 -10 -10 -9 -6 -6 -6 -6 -6 -6 -5 -5 -5 -5 -5 -5 -5 -4 -4 -4 -4 -4 -4 -4 -3 -3 -3 -3 ------- Run | Yrd Mat Min Sub Scr Fac Was Fac Low Low Zio Pro Fac Was Fac Upp Upp Zhi Pro Fac Was Fac Upp Upp War Pro Res Qua Frg Active Infowar (turns) 23462 | 19 1363 926 2431 2538 1703 168 1206 285 139 876 536 382 138 1292 289 467 161 291 1256 206 665 438 407 682 347 794 638 2819 Optics 1057 | . . . . . 480 . . . . . . . . . . . . . . . . . . . . . . 577 Sensors 14655 | . . . . . 773 168 1203 285 139 876 536 382 138 1292 289 467 161 291 1256 206 665 438 407 682 347 794 618 2242 Terrain 2416 | 19 1363 926 104 . . . 3 . . . . . . . . . . . . . . . 1 . . . . . Seismic 8393 | 15 1363 926 2431 2538 1120 . . . . . . . . . . . . . . . . . . . . . . . Decoding 2 | . . . . . . . . . . . . . . . . . . . . . . . . 2 . . . . Triangulation 1 | . . . . . . . . . . . . . . . . . . . 1 . . . . . . . . . Cloaking 1 | . . . . . . . . . . . . . . . . . . . . . . . . . . . . 1 ECM 1368 | . . . . . . . . . . . . . . . . . . . . . . . . . . 204 635 529 Robot Analysis Total 12 | . 2 . . 6 . . . . . . . . . . . . 4 . . . . . . . . . . . Derelict Logs Recovered 19 | . . 3 2 3 . . . . 1 1 1 . . . 1 3 . 2 . . . 1 1 . . . . . Drone Launches . | . . . . . . . . . . . . . . . . . . . . . . . . . . . . . Drone Recoveries . | . . . . . . . . . . . . . . . . . . . . . . . . . . . . . Exploration | -11 -10 -10 -10 -9 -6 -6 -6 -6 -6 -6 -5 -5 -5 -5 -5 -5 -5 -4 -4 -4 -4 -4 -4 -4 -3 -3 -3 -3 ------------- Run | Yrd Mat Min Sub Scr Fac Was Fac Low Low Zio Pro Fac Was Fac Upp Upp Zhi Pro Fac Was Fac Upp Upp War Pro Res Qua Frg Turns Passed 23784 | 98 1363 926 2431 2538 1703 168 1206 285 139 876 536 421 138 1292 289 487 161 291 1256 206 665 440 407 682 347 794 638 3001 Spaces Moved 25071 | 39 473 537 1816 1721 1544 124 1507 317 193 1283 854 552 140 1740 479 750 309 495 1606 221 829 668 829 1085 447 673 795 3045 Core 7 | 6 . . . . . . . . . . . . . . . . 1 . . . . . . . . . . . Treads 1787 | 33 473 537 305 364 75 . . . . . . . . . . . . . . . . . . . . . . . Legs . | . . . . . . . . . . . . . . . . . . . . . . . . . . . . . Wheels 2437 | . . . 1511 554 372 . . . . . . . . . . . . . . . . . . . . . . . Hover 20840 | . . . . 803 1097 124 1507 317 193 1283 854 552 140 1740 479 750 308 495 1606 221 829 668 829 1085 447 673 795 3045 Flight . | . . . . . . . . . . . . . . . . . . . . . . . . . . . . . Fastest Speed 27 | 50 160 160 110 95 50 50 50 55 55 50 48 50 50 45 45 45 45 45 45 45 38 43 43 43 43 40 27 27 Average Speed 65 | 143 160 160 119 145 75 50 54 55 55 52 49 56 50 48 45 45 45 45 45 45 43 43 43 43 43 40 40 48 Slowest Speed 320 | 160 160 160 160 250 320 50 55 55 55 55 50 66 50 50 45 45 150 45 45 45 45 43 43 43 43 43 106 108 Overloaded Moves 174 | . . . . . . . . . . . . . . . . . . . . . . . . . . . 34 140 Propulsion Burnouts 1 | . . . . . . . . . . . . . . . . . . . . . . . . . . . . 1 Robots Hopped . | . . . . . . . . . . . . . . . . . . . . . . . . . . . . . Potential Cave-ins 15 | . . . . . . . . . . . . . . . . . . . . . . . . 2 . . 4 9 Cave-ins Triggered 1 | . . . . . . . . . . . . . . . . . . . . . . . . . . . . 1 Exploration Rate (%) 61 | 4 85 79 86 86 35 70 38 54 42 85 78 13 90 43 59 71 62 74 43 90 26 64 92 93 62 21 75 61 Regions Visited 28 Branch Regions 17 Pre-discovered Areas 14 | . . 1 2 . 1 . . . 1 1 . . . 1 1 2 3 . . . . . 1 . . . . . Known Exits Taken 15 | . . 1 . . . . 1 . . . 1 . . 1 1 1 1 1 . . 1 1 1 1 1 1 1 . Unknown Exits Taken 7 | 1 1 . 1 1 . . . 1 1 1 . . . . . . . . . . . . . . . . . . Scrap Searched 44 | . . 1 14 6 . . . 1 1 2 4 . . . 3 3 . 1 . . . 2 4 . 2 . . . Spaces Dug 250 | . . . 2 . . . 2 . . . . . . 45 . 1 . 46 62 1 12 1 18 1 . 24 9 26 Terrain Destroyed 1235 | . . 40 85 . 15 12 30 44 2 . 48 2 . 48 . 7 . 46 167 3 119 54 50 40 14 104 48 257 Melee 135 | . . . . . . . 2 . . . . . . 45 . 1 . . 39 1 12 1 . 1 . 16 9 8 Projectile 395 | . . . 3 . 1 . 3 8 2 . 1 2 . 2 . 6 . . 35 2 11 2 . 7 14 88 19 189 AOE 701 | . . 40 82 . 12 12 25 36 . . 46 . . . . . . 46 93 . 96 51 50 32 . . 20 60 Terrain Rammed . | . . . . . . . . . . . . . . . . . . . . . . . . . . . . . Walls Destroyed . | . . . . . . . . . . . . . . . . . . . . . . . . . . . . . Machines Disabled . | . . . . . . . . . . . . . . . . . . . . . . . . . . . . . Actions | -11 -10 -10 -10 -9 -6 -6 -6 -6 -6 -6 -5 -5 -5 -5 -5 -5 -5 -4 -4 -4 -4 -4 -4 -4 -3 -3 -3 -3 --------- Run | Yrd Mat Min Sub Scr Fac Was Fac Low Low Zio Pro Fac Was Fac Upp Upp Zhi Pro Fac Was Fac Upp Upp War Pro Res Qua Frg Total 29911 | 59 959 582 1966 1750 1831 206 1708 365 212 1466 946 609 167 2017 550 876 329 533 1963 297 1011 790 868 1225 562 982 1046 4036 Wait 2105 | . 411 5 7 5 23 51 27 . . 161 46 4 . 132 60 88 . . 213 48 12 91 16 24 90 118 182 291 Move 25045 | 38 472 536 1815 1720 1544 123 1506 316 192 1282 853 552 139 1739 478 749 308 494 1606 220 828 667 828 1084 446 672 794 3044 Hop . | . . . . . . . . . . . . . . . . . . . . . . . . . . . . . Pick Up 119 | 3 2 3 7 3 21 2 6 1 . 3 3 2 1 11 1 1 2 1 6 . 5 . 1 2 . 3 5 24 Fast Attach 138 | 6 1 . 3 3 14 . 3 2 . 2 1 2 2 8 4 1 9 . 7 4 7 2 1 9 1 4 7 35 Attach 41 | 1 . . 1 1 6 . 3 . . 1 . . . 3 . . . 1 . 1 . . . . . 2 4 17 Detach 22 | . . . . 1 1 . . . . . . . . 2 . . . . . . . . . . . 1 2 15 Swap 207 | . 1 2 16 9 14 4 20 2 3 2 6 7 2 12 2 6 . 3 12 . 18 3 7 14 2 5 4 31 Drop 218 | . 4 2 11 8 29 3 7 2 1 4 5 4 3 16 4 4 10 . 9 . 16 2 2 13 1 5 5 48 Fire 1072 | 11 62 21 70 . 134 12 84 31 6 . 12 24 20 36 . 8 . 10 52 13 53 14 4 36 19 92 20 228 Melee 222 | . . . 6 . . . 5 . . 11 . . . 58 1 4 . 6 49 1 17 2 2 1 . 18 16 25 Ram 3 | . . . . . . . . . . . . . . . . . . . . . 1 . . . . . . 2 Kick . | . . . . . . . . . . . . . . . . . . . . . . . . . . . . . Crush 1 | . . 1 . . . . . . . . . . . . . . . . . . . . . . . . . . Escape Stasis 17 | . . . . . . . 6 . . . . . . . . . . . . . . . . . . . . 11 Rewire 33 | . . 1 . . . . . . . . . . . . . . . . . . . . . 32 . . . . Trap . | . . . . . . . . . . . . . . . . . . . . . . . . . . . . . Miscellaneous 668 | . 6 11 30 . 45 11 41 11 10 . 20 14 . . . 15 . 18 9 10 54 9 7 10 3 62 7 265 Route ------- -11/Scrapyard -10/Materials (discovered 4 exits: [*Mat x2] / *Min x2) -10/Mines (discovered 4 exits: [*Mat x2] / [*Exi] / *Sub) -10/Subcaves (discovered 3 exits: [*Mat x2] / *Scr) -9/Scraptown -6/Factory (discovered 4 exits: *Fac x3 / *Low) -6/Waste -6/Factory -6/Lower Caves -6/Lower Caves -6/Zion -5/Proximity Caves -5/Factory -5/Waste -5/Factory (discovered 2 exits: *Upp x2) -5/Upper Caves -5/Upper Caves (discovered 2 exits: *Fac / *Zhi) -5/Zhirov -4/Proximity Caves -4/Factory (discovered 6 exits: *Res / Upp x2 / Ext x2 / Arm) -4/Waste -4/Factory (discovered 2 exits: *Upp / Arm) -4/Upper Caves -4/Upper Caves (discovered 2 exits: *Res / *War) -4/Warlord -3/Proximity Caves -3/Research (discovered 4 exits: *Res x2 / *Qua x2) -3/Quarantine (discovered 3 exits: *Res / *Sec / *Frg) -3/Protoforge History --------- Turn | Location | Event 5 | -11/Scrapyard | Upgraded with Propulsion slot (x1) 5 | -11/Scrapyard | Upgraded with Utility slot (x1) 5 | -11/Scrapyard | Upgraded with Weapon slot (x1) 16 | -11/Scrapyard | Discovered new exit (range 16) 99 | -11/Scrapyard | Entered Materials 303 | -10/Materials | Discovered new exit (range 8) 317 | -10/Materials | Build established: Mutant 451 | -10/Materials | Discovered new exit (range 15) 530 | -10/Materials | Central database locked down 815 | -10/Materials | Discovered new exit (range 5) 846 | -10/Materials | Reached level 2 867 | -10/Materials | Discovered new exit (range 15) 985 | -10/Materials | Learned 4 Subcaves zone layouts 1044 | -10/Materials | Learned Storage non-interactive machine intel 1092 | -10/Materials | Learned location of 1 exit from Storage 1131 | -10/Materials | Learned Storage trap positions 1161 | -10/Materials | Learned Storage security intel 1180 | -10/Materials | Learned 2 Mines zone layouts 1190 | -10/Materials | Learned Storage emergency access door positions 1209 | -10/Materials | Loaded intel: 22 trap records 1239 | -10/Materials | Learned Storage stockpile data 1281 | -10/Materials | Learned Storage stockpile data 1333 | -10/Materials | Learned location of 1 exit from Storage 1462 | -10/Materials | Entered Mines 1463 | -10/Mines | Identified exit to Subcaves 1536 | -10/Mines | Discovered new exit (range 10) 1578 | -10/Mines | Deemed a non-threat by the Exiles lab entrance 1578 | -10/Mines | Discovered new exit (range 5) 1619 | -10/Mines | Discovered new exit (range 10) 1726 | -10/Mines | Assembled infested the area 1753 | -10/Mines | Core integrity fell below 50% 1760 | -10/Mines | Met 8R-AWN 1813 | -10/Mines | Learned Materials stockpile data 1934 | -10/Mines | Assisted by bots powering up and referring to "LRC-V3" 2264 | -10/Mines | Met a Derelict shopkeep closing up shop 2388 | -10/Mines | Entered Subcaves 2388 | -10/Subcaves | Accompanied by 3 allies 2389 | -10/Subcaves | Approached by a straggling Scientist 2390 | -10/Subcaves | Reached level 3 2404 | -10/Subcaves | Shifting Twisted Machinery released Sub. Beam Cannon 2596 | -10/Subcaves | Shifting Twisted Machinery released Multitool 2673 | -10/Subcaves | Scientist uncovered a shortcut to Scraptown 2756 | -10/Subcaves | Shifting Twisted Machinery released Sub. Power Source 2756 | -10/Subcaves | Discovered new exit (range 8) 2758 | -10/Subcaves | Shifting Twisted Machinery released Sub. Beam Cannon 3052 | -10/Subcaves | Discovered new exit (range 6) 3129 | -10/Subcaves | Visited 4L-MR0's lab 3141 | -10/Subcaves | Found Tower Shield 3243 | -10/Subcaves | A swath of the cavern ceiling suddenly collapsed 3406 | -10/Subcaves | A swath of the cavern ceiling suddenly collapsed 3555 | -10/Subcaves | Learned location of Storage (-9) 4036 | -10/Subcaves | Learned location of Zion (-6) 4036 | -10/Subcaves | Met a Zionite searching for "candidates" 4048 | -10/Subcaves | Disturbed a concealed Subdweller 4725 | -10/Subcaves | Learned Materials garrison access intel 4726 | -10/Subcaves | Visited Clippyterm 4730 | -10/Subcaves | Learned 40 Factory zone layouts 4819 | -10/Subcaves | Entered Scraptown 4819 | -9/Scraptown | Accompanied by 1 ally 4995 | -9/Scraptown | Scanned Subdweller tech in exchange for log data 4997 | -9/Scraptown | Learned Research terminal intel 4998 | -9/Scraptown | Learned 8 Research zone layouts 4999 | -9/Scraptown | Learned Factory emergency access door positions 5440 | -9/Scraptown | Visited TADAMA 5469 | -9/Scraptown | Visited Spacefarers 5494 | -9/Scraptown | Visited Bundlers 5584 | -9/Scraptown | Visited Red Mages 5615 | -9/Scraptown | Visited Awakened 5652 | -9/Scraptown | Visited Comm Corps 5717 | -9/Scraptown | Visited UFD Registry 5717 | -9/Scraptown | Registered with UFD as "Arccycle" 5782 | -9/Scraptown | Visited Chapter 10 5806 | -9/Scraptown | Visited Science Guys 5984 | -9/Scraptown | Visited Science Testing Area 6007 | -9/Scraptown | Visited Scrap Suit Storage 6049 | -9/Scraptown | Visited Scrapoid Pod Storage 6071 | -9/Scraptown | Visited Scrapoid Research Area 6102 | -9/Scraptown | Visited Junk Repository 6148 | -9/Scraptown | Visited Analyses Database 6187 | -9/Scraptown | Visited Curators Association 7095 | -9/Scraptown | Found Scrapoid Pod 7297 | -9/Scraptown | Met Optimus 7297 | -9/Scraptown | Accepted into 0bPrime 7347 | -9/Scraptown | Discovered new exit (range 5) 7357 | -9/Scraptown | Entered Factory 7357 | -6/Factory | Accompanied by 1 ally 7358 | -6/Factory | Identified exit to Factory 7358 | -6/Factory | Identified exit to Lower Caves 7359 | -6/Factory | Reached level 4 7359 | -6/Factory | Upgraded with Utility slot (x1) 7402 | -6/Factory | Attached Tower Shield, gained temporary slots: Power, Propulsion x2, Utility x2, Weapon x2 7436 | -6/Factory | Reached level 5 7702 | -6/Factory | Loaded intel: 8 recycling unit locations 8156 | -6/Factory | Reached level 6 8159 | -6/Factory | Upgraded with Propulsion slot (x1) 8175 | -6/Factory | Core integrity fell below 50% 8254 | -6/Factory | Learned location of Protoforge (-3) 8278 | -6/Factory | Scrapoid Pod released 06F07-D (x5) 8362 | -6/Factory | Reached level 7 8362 | -6/Factory | Upgraded with Utility slot (x1) 8460 | -6/Factory | Build established: Scavenger-Mutant 8764 | -6/Factory | Reached level 8 8767 | -6/Factory | Upgraded with Propulsion slot (x1) 9060 | -6/Factory | Sucked down chute 9060 | -6/Factory | Entered Waste 9062 | -6/Waste | Reached level 9 9065 | -6/Waste | Spotted C-40 Crusher 9075 | -6/Waste | EMP discharged 9084 | -6/Waste | Met Warlord forces unprepared to attack 9099 | -6/Waste | Spotted C-40 Crusher 9100 | -6/Waste | Spotted C-40 Crusher 9105 | -6/Waste | 1 allies followed down the chute 9105 | -6/Waste | Spotted C-40 Crusher 9106 | -6/Waste | Spotted C-40 Crusher 9107 | -6/Waste | Allies destroyed C-40 Crusher 9110 | -6/Waste | Allies destroyed C-40 Crusher 9112 | -6/Waste | Allies destroyed C-40 Crusher 9120 | -6/Waste | Spotted C-40 Crusher 9131 | -6/Waste | Allies destroyed C-40 Crusher 9133 | -6/Waste | Allies destroyed C-40 Crusher 9140 | -6/Waste | Allies destroyed C-40 Crusher 9167 | -6/Waste | Lost 8 allies 9168 | -6/Waste | Discovered new exit (range 17) 9175 | -6/Waste | EMP discharged 9175 | -6/Waste | System corruption reached 10% 9228 | -6/Waste | Entered Factory 9228 | -6/Factory | Accompanied by 12 allies 9481 | -6/Factory | Loaded intel: 8 recycling unit locations 9564 | -6/Factory | P-60 Hacker assimilated allied 6R-59F(m) 9600 | -6/Factory | Build established: Mutant 9683 | -6/Factory | Reached level 10 9802 | -6/Factory | Reached level 11 9803 | -6/Factory | Upgraded with Utility slot (x1) 9836 | -6/Factory | Lost 4 allies 9862 | -6/Factory | Reached level 12 9995 | -6/Factory | Reached level 13 10107 | -6/Factory | Build established: Hacker-Mutant 10419 | -6/Factory | Discovered exit to Lower Caves (range 7) 10434 | -6/Factory | Entered Lower Caves 10436 | -6/Lower Caves | Reached level 14 10478 | -6/Lower Caves | Attracted the attention of an 0b10 checkpoint 10631 | -6/Lower Caves | Reached level 15 10677 | -6/Lower Caves | Encountered a Warlord checkpoint 10682 | -6/Lower Caves | Discovered new exit (range 6) 10719 | -6/Lower Caves | Entered another Lower Caves area 10746 | -6/Lower Caves | Attracted the attention of an 0b10 checkpoint 10852 | -6/Lower Caves | Discovered new exit (range 11) 10858 | -6/Lower Caves | Entered Zion 10885 | -6/Zion | System corruption cleaned by Quarantine Array 10903 | -6/Zion | Discovered new exit (range 17) 10917 | -6/Zion | Gained Derelict followers 10969 | -6/Zion | Learned location of Warlord (-4) 10984 | -6/Zion | Gained Derelict followers 11035 | -6/Zion | Found CR-A16's Pointy Stick 11180 | -6/Zion | Turned away by Imprinter 11180 | -6/Zion | Reached level 16 11183 | -6/Zion | Upgraded with Propulsion slot (x1) 11734 | -6/Zion | Entered Proximity Caves 11734 | -5/Proximity Caves | Accompanied by 6 allies 11861 | -5/Proximity Caves | Reached level 17 11885 | -5/Proximity Caves | Learned location of 1 exit from Factory 12085 | -5/Proximity Caves | Discovered exit to Factory (range 15) 12270 | -5/Proximity Caves | Entered Factory 12270 | -5/Factory | Accompanied by 4 allies 12271 | -5/Factory | Identified exit to Factory 12272 | -5/Factory | Reached level 18 12337 | -5/Factory | Build established: Hacker-Scout 12529 | -5/Factory | Reached level 19 12691 | -5/Factory | Sucked down chute 12691 | -5/Factory | Entered Waste 12691 | -5/Waste | Met up with 1 ally sucked down the chute earlier 12702 | -5/Waste | Spotted C-40 Crusher 12706 | -5/Waste | EMP discharged 12706 | -5/Waste | System corruption reached 10% 12709 | -5/Waste | Spotted C-40 Crusher 12713 | -5/Waste | Destroyed C-40 Crusher 12715 | -5/Waste | Spotted C-40 Crusher 12716 | -5/Waste | Spotted C-40 Crusher 12741 | -5/Waste | Spotted C-40 Crusher 12754 | -5/Waste | Destroyed C-40 Crusher 12792 | -5/Waste | Spotted C-40 Crusher 12806 | -5/Waste | EMP discharged 12825 | -5/Waste | Discovered new exit (range 10) 12829 | -5/Waste | Identified exit to Factory 12829 | -5/Waste | Entered Factory 13104 | -5/Factory | Reached level 20 13167 | -5/Factory | Discovered new exit (range 4) 13169 | -5/Factory | Identified exit to Upper Caves 13238 | -5/Factory | Build established: Scavenger-Scout 13310 | -5/Factory | Upgraded with Weapon slot (x1) 13331 | -5/Factory | Loaded intel: 8 recycling unit locations 14035 | -5/Factory | Learned location of 1 exit from Research 14121 | -5/Factory | Entered Upper Caves 14177 | -5/Upper Caves | Build established: Hacker-Scout 14318 | -5/Upper Caves | Acquired the password to a Derelict Tinkerer's latest research 14323 | -5/Upper Caves | Found Prototype Special Weapon 14323 | -5/Upper Caves | Identified Molecular Deconstructor 14370 | -5/Upper Caves | Discovered new exit (range 9) 14373 | -5/Upper Caves | Identified exit to Upper Caves 14410 | -5/Upper Caves | Entered another Upper Caves area 14412 | -5/Upper Caves | Reached level 21 14423 | -5/Upper Caves | Discovered exit to Factory (range 17) 14428 | -5/Upper Caves | Entered a destroyed Warlord outpost 14632 | -5/Upper Caves | Learned location of Armory (-4) 14891 | -5/Upper Caves | Discovered new exit (range 7) 14897 | -5/Upper Caves | Identified exit to Zhirov 14897 | -5/Upper Caves | Entered Zhirov 14899 | -5/Zhirov | Discovered new exit (range 3) 14907 | -5/Zhirov | Met Zhirov 14917 | -5/Zhirov | Learned location of Quarantine (-3) 14917 | -5/Zhirov | Learned location of Testing (-2) 14917 | -5/Zhirov | Learned location of Command (-1) 14926 | -5/Zhirov | Zhirov requested help retrieving the SGEMP Prototype 14943 | -5/Zhirov | Found Alien Artifact 14943 | -5/Zhirov | Identified Integrated Dissipator 14943 | -5/Zhirov | Installed Integrated Dissipator, increased core heat dissipation (+20) 15057 | -5/Zhirov | Identified exit to Proximity Caves 15058 | -5/Zhirov | Entered Proximity Caves 15060 | -4/Proximity Caves | Reached level 22 15060 | -4/Proximity Caves | Upgraded with Utility slot (x1) 15169 | -4/Proximity Caves | Attracted the attention of an 0b10 checkpoint 15344 | -4/Proximity Caves | Discovered exit to Factory (range 11) 15345 | -4/Proximity Caves | Learned Research stockpile data 15349 | -4/Proximity Caves | Entered Factory 15350 | -4/Factory | Identified exit to Armory 15351 | -4/Factory | Reached level 23 15387 | -4/Factory | Loaded intel: 8 recycling unit locations 15658 | -4/Factory | Reached level 24 15684 | -4/Factory | Core integrity fell below 50% 15700 | -4/Factory | Destroyed 10 combat bots 15926 | -4/Factory | Identified exit to Upper Caves 15926 | -4/Factory | Identified exit to Extension 16099 | -4/Factory | First assault squad dispatched 16218 | -4/Factory | Found Prototype Processor 16245 | -4/Factory | Identified Exp. Signal Interpreter 16333 | -4/Factory | Repaired Hrd. Medium Armor Plating 16444 | -4/Factory | Reached level 25 16471 | -4/Factory | Discovered new exit (range 8) 16473 | -4/Factory | Identified exit to Research 16605 | -4/Factory | Manually triggered Chute Trap 16605 | -4/Factory | Sucked down chute 16605 | -4/Factory | Entered Waste 16609 | -4/Waste | Spotted C-40 Crusher 16612 | -4/Waste | Spotted C-40 Crusher 16620 | -4/Waste | EMP discharged 16620 | -4/Waste | System corruption reached 10% 16633 | -4/Waste | Spotted C-40 Crusher 16637 | -4/Waste | Crushed by Compactor (0 parts destroyed, 2 dropped) 16650 | -4/Waste | Spotted C-40 Crusher 16670 | -4/Waste | Spotted C-40 Crusher 16678 | -4/Waste | Crushed by Compactor (1 part destroyed, 1 dropped) 16693 | -4/Waste | Spotted C-40 Crusher 16704 | -4/Waste | Met Warlord forces unprepared to attack 16720 | -4/Waste | EMP discharged 16739 | -4/Waste | Destroyed C-40 Crusher 16745 | -4/Waste | Allies destroyed C-40 Crusher 16745 | -4/Waste | Allies destroyed C-40 Crusher 16747 | -4/Waste | Lost 3 allies 16752 | -4/Waste | Allies destroyed C-40 Crusher 16764 | -4/Waste | Discovered new exit (range 12) 16769 | -4/Waste | Identified exit to Factory 16783 | -4/Waste | Lost 5 allies 16811 | -4/Waste | Entered Factory 16811 | -4/Factory | Accompanied by 11 allies 16943 | -4/Factory | Reached level 26 16979 | -4/Factory | Garrison activated, responded to threat 17047 | -4/Factory | Lost 5 allies 17152 | -4/Factory | Loaded intel: 8 recycling unit locations 17311 | -4/Factory | First assault squad dispatched 17416 | -4/Factory | Destroyed 7 combat bots 17456 | -4/Factory | Discovered exit to Upper Caves (range 15) 17476 | -4/Factory | Entered Upper Caves 17589 | -4/Upper Caves | Learned Research emergency access door positions 17683 | -4/Upper Caves | Attracted the attention of an 0b10 checkpoint 17914 | -4/Upper Caves | Discovered new exit (range 6) 17915 | -4/Upper Caves | Identified exit to Upper Caves 17916 | -4/Upper Caves | Entered another Upper Caves area 17959 | -4/Upper Caves | Discovered exit to Research (range 18) 18083 | -4/Upper Caves | Reached level 27 18137 | -4/Upper Caves | Spotted B-86 Titan 18245 | -4/Upper Caves | Discovered new exit (range 9) 18248 | -4/Upper Caves | Identified exit to Warlord 18323 | -4/Upper Caves | Entered Warlord 18346 | -4/Warlord | System corruption cleaned by Quarantine Array 18451 | -4/Warlord | Rebuked by Warlord 18476 | -4/Warlord | Warlord's base attacked by MAIN.C 18674 | -4/Warlord | Found Prototype Energy Gun 18674 | -4/Warlord | Identified Vortex Shotgun 18677 | -4/Warlord | Found Prototype Energy Gun 18677 | -4/Warlord | Identified Vortex Rail 18682 | -4/Warlord | Found Prototype Launcher 18682 | -4/Warlord | Identified Vortex Catalyst Activator 18826 | -4/Warlord | Warlord forces counterattacked 18847 | -4/Warlord | P-70 Sage assimilated allied E6-6V1(g) 18858 | -4/Warlord | P-70 Sage assimilated allied 1V-TTG(Y) 18888 | -4/Warlord | Spotted Executioner 18889 | -4/Warlord | Spotted Executioner 18890 | -4/Warlord | Lost 4 allies 18903 | -4/Warlord | Allies destroyed Executioner 18906 | -4/Warlord | Destroyed Executioner 18932 | -4/Warlord | Found Prototype Processor 18932 | -4/Warlord | Identified Exp. Targeting Computer 18944 | -4/Warlord | Found Prototype Processor 18944 | -4/Warlord | Identified Exp. Core Analyzer 18946 | -4/Warlord | Lost 7 allies 18950 | -4/Warlord | Found Exp. Core Analyzer 18976 | -4/Warlord | Discovered new exit (range 14) 18981 | -4/Warlord | Identified exit to Proximity Caves 19005 | -4/Warlord | Entered Proximity Caves 19005 | -3/Proximity Caves | Accompanied by 3 allies 19036 | -3/Proximity Caves | Lost 9 allies 19065 | -3/Proximity Caves | Attracted the attention of an 0b10 checkpoint 19254 | -3/Proximity Caves | Discovered exit to Research (range 11) 19352 | -3/Proximity Caves | Entered Research 19352 | -3/Research | Accompanied by 2 allies 19353 | -3/Research | Identified exit to Research 19354 | -3/Research | Reached level 28 19357 | -3/Research | Loaded intel: 23 terminal locations 19390 | -3/Research | Identified exit to Quarantine 19580 | -3/Research | Loaded intel: 5 recycling unit locations 19755 | -3/Research | Reached level 29 19844 | -3/Research | System corruption reached 10% 19853 | -3/Research | Core integrity fell below 50% 19924 | -3/Research | Discovered exit to Research (range 18) 20082 | -3/Research | Spotted B-90 Cyclops 20102 | -3/Research | First assault squad dispatched 20146 | -3/Research | Entered Quarantine 20225 | -3/Quarantine | Build established: Hacker-Ninja 20230 | -3/Quarantine | Found Alien Artifact 20405 | -3/Quarantine | Discovered exit to Research (range 10) 20462 | -3/Quarantine | Cryocooling Duct disabled 20477 | -3/Quarantine | Ambient heat levels rising (+20) 20477 | -3/Quarantine | Non-combat units ordered to evacuate 20604 | -3/Quarantine | Found Alien Artifact 20605 | -3/Quarantine | Identified Subatomic Replicator 20605 | -3/Quarantine | Used Subatomic Replicator to create Alien Artifact 20654 | -3/Quarantine | Repaired Lrn. Sensor Array 20684 | -3/Quarantine | Found Alien Artifact 20684 | -3/Quarantine | Identified Terrabomb 20684 | -3/Quarantine | Used Terrabomb 20758 | -3/Quarantine | Spotted Fortress 20781 | -3/Quarantine | Discovered new exit (range 6) 20781 | -3/Quarantine | Discovered new exit (range 7) 20783 | -3/Quarantine | Identified exit to Section 7 20784 | -3/Quarantine | Identified exit to Protoforge 20784 | -3/Quarantine | Entered Protoforge 20785 | -3/Protoforge | Superfortress began startup sequence 20786 | -3/Protoforge | Reached level 30 20863 | -3/Protoforge | Spotted Hotshot 20865 | -3/Protoforge | Spotted Hotshot 20865 | -3/Protoforge | Spotted Hotshot 20867 | -3/Protoforge | Spotted Hotshot 20883 | -3/Protoforge | Spotted Hotshot 20883 | -3/Protoforge | Spotted Hotshot 20962 | -3/Protoforge | Destroyed Hotshot 20984 | -3/Protoforge | Destroyed Hotshot 21323 | -3/Protoforge | Found Prototype Storage 21323 | -3/Protoforge | Identified Cep. Chromion Battery 21353 | -3/Protoforge | Found Prototype Storage 21353 | -3/Protoforge | Identified Cep. NT7 Matterbank 21464 | -3/Protoforge | Spotted EXE-6 21474 | -3/Protoforge | Spotted EXE-6 21494 | -3/Protoforge | UFD initiated attack on Protoforge 21494 | -3/Protoforge | Loaded intel: 3 recycling unit locations 21520 | -3/Protoforge | Spotted SKR-2 21520 | -3/Protoforge | Spotted SKR-2 21530 | -3/Protoforge | Optimus greeted in Protoforge 21570 | -3/Protoforge | Lost 3 allies 21607 | -3/Protoforge | Build established: Hacker-Scout 21660 | -3/Protoforge | Fabricated Hyp. Gauss Rifle (x2) 21670 | -3/Protoforge | Met 7R-MNS 21730 | -3/Protoforge | Found Prototype Ballistic Gun 21730 | -3/Protoforge | Identified Cep. XC Strikerail 21741 | -3/Protoforge | Spotted Striker 21816 | -3/Protoforge | Spotted Striker 21819 | -3/Protoforge | Spotted Striker 21837 | -3/Protoforge | Destroyed Striker 21869 | -3/Protoforge | Found Prototype Launcher 21869 | -3/Protoforge | Identified Cep. Concussive Dispersal Blaster 21882 | -3/Protoforge | Found Prototype Device 21902 | -3/Protoforge | Spotted Striker 21904 | -3/Protoforge | Spotted Striker 21906 | -3/Protoforge | Spotted Decapitator 21910 | -3/Protoforge | Spotted Immortal 21928 | -3/Protoforge | Destroyed Striker 21931 | -3/Protoforge | Core integrity fell below 20% 21940 | -3/Protoforge | Destroyed Striker 21988 | -3/Protoforge | Destroyed Immortal 21996 | -3/Protoforge | Found Prototype Device 21996 | -3/Protoforge | Identified Exp. Cloaking Device 21999 | -3/Protoforge | Found Prototype Processor 21999 | -3/Protoforge | Identified Exp. Melee Analysis Suite 22001 | -3/Protoforge | Identified Exp. System Purifier 22006 | -3/Protoforge | Found Prototype Piercing Weapon 22007 | -3/Protoforge | Identified Exp. Jetlance 22124 | -3/Protoforge | Spotted Executioner 22134 | -3/Protoforge | Spotted Striker 22140 | -3/Protoforge | Spotted Striker 22144 | -3/Protoforge | Destroyed Striker 22164 | -3/Protoforge | Spotted Striker 22168 | -3/Protoforge | Spotted Striker 22169 | -3/Protoforge | Destroyed Striker 22195 | -3/Protoforge | P-80 Master assimilated allied 03F74-D 22205 | -3/Protoforge | P-80 Master assimilated allied 03F10-K 22205 | -3/Protoforge | Spotted 03F10-K 22241 | -3/Protoforge | Found Exp. Targeting Computer 22268 | -3/Protoforge | Lost 5 allies 22271 | -3/Protoforge | Destroyed 7 combat bots 22280 | -3/Protoforge | Crushed by falling debris 22305 | -3/Protoforge | P-80 Master assimilated allied J9-699(E) 22305 | -3/Protoforge | Spotted Executioner 22308 | -3/Protoforge | P-80 Master assimilated allied 7P-23L(E) 22332 | -3/Protoforge | Lost 6 allies 22333 | -3/Protoforge | Spotted Executioner 22334 | -3/Protoforge | Spotted Striker 22351 | -3/Protoforge | Spotted Executioner 22361 | -3/Protoforge | Destroyed Hotshot 22388 | -3/Protoforge | Lost 4 allies 22427 | -3/Protoforge | Spotted Executioner 22428 | -3/Protoforge | Spotted Striker 22438 | -3/Protoforge | Destroyed Executioner 22464 | -3/Protoforge | Destroyed Striker 22475 | -3/Protoforge | UFD reported confirmed Drillbomb installation 22482 | -3/Protoforge | Spotted Executioner 22487 | -3/Protoforge | Spotted Executioner 22491 | -3/Protoforge | Destroyed Executioner 22519 | -3/Protoforge | Lost 4 allies 22671 | -3/Protoforge | Found Unknown Protection 22671 | -3/Protoforge | Identified Hvy. Reflective Plating 22714 | -3/Protoforge | UFD reported confirmed Drillbomb installation 22735 | -3/Protoforge | Spotted 03F14-K 22904 | -3/Protoforge | Build established: Scavenger-Scout 22958 | -3/Protoforge | UFD reported confirmed Drillbomb installation 23036 | -3/Protoforge | UFD reported confirmed Drillbomb installation 23053 | -3/Protoforge | Spotted Executioner 23056 | -3/Protoforge | Spotted Executioner 23130 | -3/Protoforge | Spotted Striker 23142 | -3/Protoforge | Destroyed Striker 23171 | -3/Protoforge | UFD reported confirmed Drillbomb installation 23180 | -3/Protoforge | Spotted Striker 23181 | -3/Protoforge | Destroyed Striker 23184 | -3/Protoforge | Spotted Striker 23185 | -3/Protoforge | Destroyed Striker 23204 | -3/Protoforge | Spotted Striker 23204 | -3/Protoforge | Destroyed Striker 23209 | -3/Protoforge | Spotted Striker 23216 | -3/Protoforge | Lost 5 allies 23236 | -3/Protoforge | Found Prototype Device 23236 | -3/Protoforge | Identified Adv. Kinecellerator 23238 | -3/Protoforge | UFD reported confirmed Drillbomb installation 23294 | -3/Protoforge | Spotted Executioner 23294 | -3/Protoforge | Spotted Striker 23312 | -3/Protoforge | Reached level 31 23312 | -3/Protoforge | Destroyed Executioner 23315 | -3/Protoforge | Upgraded with Weapon slot (x1) 23323 | -3/Protoforge | Spotted Executioner 23324 | -3/Protoforge | Spotted Striker 23336 | -3/Protoforge | Lost 4 allies 23339 | -3/Protoforge | P-80 Master assimilated allied 03F30-K 23339 | -3/Protoforge | Spotted 03F30-K 23393 | -3/Protoforge | Spotted Striker 23393 | -3/Protoforge | Spotted Executioner 23397 | -3/Protoforge | Spotted Executioner 23399 | -3/Protoforge | Spotted Executioner 23428 | -3/Protoforge | Spotted Executioner 23434 | -3/Protoforge | Spotted Striker 23443 | -3/Protoforge | Destroyed Striker 23449 | -3/Protoforge | Destroyed Executioner 23498 | -3/Protoforge | Spotted Striker 23500 | -3/Protoforge | Destroyed Striker 23500 | -3/Protoforge | Spotted Executioner 23548 | -3/Protoforge | Lost 12 allies 23555 | -3/Protoforge | UFD reported confirmed Drillbomb installation 23560 | -3/Protoforge | Spotted Striker 23567 | -3/Protoforge | Destroyed Striker 23568 | -3/Protoforge | Build established: Scavenger-Gunner 23571 | -3/Protoforge | Spotted Executioner 23571 | -3/Protoforge | Spotted Striker 23571 | -3/Protoforge | Spotted Striker 23578 | -3/Protoforge | Spotted Striker 23579 | -3/Protoforge | Destroyed Executioner 23581 | -3/Protoforge | Spotted Executioner 23590 | -3/Protoforge | Destroyed Striker 23602 | -3/Protoforge | UFD reported confirmed Drillbomb installation 23606 | -3/Protoforge | Lost 4 allies 23618 | -3/Protoforge | Destroyed 8 combat bots 23661 | -3/Protoforge | Spotted Executioner 23669 | -3/Protoforge | Spotted Executioner 23669 | -3/Protoforge | Spotted Executioner 23669 | -3/Protoforge | Spotted Executioner 23671 | -3/Protoforge | Spotted Striker 23675 | -3/Protoforge | Spotted Executioner 23684 | -3/Protoforge | Destroyed Executioner 23691 | -3/Protoforge | Destroyed Striker 23714 | -3/Protoforge | Lost 6 allies 23725 | -3/Protoforge | Destroyed Executioner 23755 | -3/Protoforge | Spotted Executioner 23760 | -3/Protoforge | Spotted Striker 23761 | -3/Protoforge | Destroyed Striker 23766 | -3/Protoforge | Spotted Executioner 23768 | -3/Protoforge | Spotted Striker 23784 | -3/Protoforge | P-80 Master assimilated allied 03F29-K 23785 | -3/Protoforge | Destroyed by Executioner with Helical Railgun Last Messages --------------- 23783_ Acquired 36 matter. 23783_ Slug penetrates Concept Prefabricator. 23784_ P-80 Master suffers critical hit (Destroy). 23784_ Destroyed Mic. Antimatter Reactor. 23784_ P-80 Master hacks 03F29-K, assimilated. 23784_ N-04 Retriever collects Imp. Deuterium Engine. 23784_ N-04 Retriever collects Unknown Wheel. 23784_ N-04 Retriever collects Mak. Coolant Network. 23784_ N-04 Retriever collects Adv. Kinecellerator. 23784_ Slug penetrates Concept Prefabricator. 23784_ Penetrated by Slug. 23784_ Slug penetrates Striker. 23784_ Striker suffers critical hit (Destroy). 23785_ Acquired 20 matter. 23785_ Slug penetrates H-77 Assassin. 23785_ Penetrated by Slug. Map ----- +----------------------------------------------------+ | %!#! "" ####?##" % # "" " " %%% % | | =""=""" ####?##" """ " # ""T""" ##"%"""" % | | %!**"R=! ####?###=! """" ;=!""""" ###"# "% | | %==/]!"!!####?###%! %% ;!*= # # # #""%% | | [!===[%|!####???+=* " ;;!##;;+## # " # " % | | %*[==[!!*##[##### =% * %%; %!#[;# # ; ## " | | =%|!![!*!=[!=#]##;;;;; n% ;%%;;;% # # ##?#!! | | [!!%=/%=%%*%==! % %%%% %% %% ; ; #### %%% | | !%=*=!===%!=!%! % C % % % ;;; # # " "% | | %=%%===%!%%=! !!**%!!%%!!!=!*=*=;;;;;;""";#;"% | | ==[=!%%%%|[%!% % ![[%[*!!=!![ /==! %%% %" | | ![*!!![%!E/*=;;%;;;%=;!=%!!;%;=*;% % " " | | [#*=!!%![E!=* n !%% =!! ; ! ; " | | " #![*#=**[!h ; [[! ; ; " | | " ####===!% = %; [%;! ; ;%% " | | " ##?####! h %p % %;%;%%;; ; " % "% | | ##???##%%" g % ; % %;;;;;%";;;%""""%%""" | | ##???##=! "" %; % % %SS% % %% %%%%% %% | | ##???#; = "" ; %%!% % S% % %%%% % | | ##???##=! " % ; K % %% % %% % % %%%%% | | #########= %""" %%! %;;;";;""%"""""""%% | | ######### % """ =;;SS ;;!#** ? % " | | ! %%% % ;=SS%;* # %[ " ! " | | " ;;| e%= #""" # %= "% | | %%%##########;;;%%|!=/ ##"" " " * "%% | | " "" %"#?####### # ;%*@%*###"""" # " | | "" " ""%"#?##????#####;[%=;#### " #% | | "" """%=#?##???????# ; SS%#?## ###"###" | | " """" #??##???????# ;ESS;#### #######" | | %!!"% #####??????# #j ;###"""""#######???# " | | %%! % ########???## ; ;# ##########???# " | | #####"""############### ;#" ###?????????## " | | ###### ??????########; ;#" ###??????#??# " | | ###### ??????##???## ; js;;" ######### ### " | | + "??????##?% # ;; ;# ##"""""###"""#"" | | ###### ???????## "";s ##""#"# % %% | | ###### ???????# ??= s jSS ? % %% | | ###?## ????? + ??[ sSS %= % % ? | | ##?## ???????# % %%** % | | ##?##????????#?? #### ;"##"#"=%% | | #####????????#? #####;;;#######%" """""" | | ##############? ?#??? ?# # """""" | | ##???????????????#??? ?# " """"" | | ##???????????????#??? ?# + | | ##???????????????#??? ?# """ #% | | ##???????????????#??? # """ #% | | ##???????????????#?? # """?# #"" "###### | | ####??????????????#?? # ?# ###* ####### | | ???#?????????""???#?? ####### #######????? | | ???#?????????""" ################# #######????? | +----------------------------------------------------+ Best States ------------- Heat Dissipation 81 Energy Generation 44 Energy Capacity 1100 Matter Stores 550 Matter Capacity 550 Sight Range 27 Robot Scan Range 40 Terrain Scan Range 16 Terrain Scan Density 10 ECM Strength 1 Armor Coverage 2000 Resistance: KI 20 Resistance: TH 30 Resistance: EX 10 Propulsion Shielding 90 Utility Shielding 90 Weapon Shielding 90 Phase Shifting 10 Evasion (%) 69 Targeting Accuracy 12 Melee Accuracy 12 Target Analysis 8 Core Analysis 8 Armor Integrity Analysis 40 Recoil Reduction 6 Kinecelleration 50 Offensive Hacking 34 Defensive Hacking 10 Item Schematics ----------------- Hyp. Gauss Rifle | -5/Factory | Scanalyzed Assault Drone Bay | -5/Zhirov | Free Exp. Heat Sink | -5/Zhirov | Free Exp. Optical Array | -5/Zhirov | Free Imp. Arc Thrower | -5/Zhirov | Free Exp. Signal Interpreter | -4/Factory | Scanalyzed Robot Schematics ------------------ None Fabricated ------------ Hyp. Gauss Rifle | x2 | -3/Protoforge | Authchip Repaired ---------- Hrd. Medium Armor Plating | 11% | -4/Factory Lrn. Sensor Array | 11% | -3/Quarantine Alien Tech Used ----------------- Integrated Dissipator Subatomic Replicator Terrabomb Achievements -------------- Equal Opportunity Bot Gunslinger Challenges ------------ None RPGLIKE | -11 -10 -10 -10 -9 -6 -6 -6 -6 -6 -6 -5 -5 -5 -5 -5 -5 -5 -4 -4 -4 -4 -4 -4 -4 -3 -3 -3 -3 --------- Run | Yrd Mat Min Sub Scr Fac Was Fac Low Low Zio Pro Fac Was Fac Upp Upp Zhi Pro Fac Was Fac Upp Upp War Pro Res Qua Frg Levels Raised 30 | . 1 . 1 . 5 1 4 2 . 1 1 2 . 1 . 1 . 1 3 . 1 . 1 . . 2 . 2 XP Earned 48408 | 3000 1555 650 1355 900 7515 290 7103 1850 700 650 2522 2504 200 1642 349 468 316 1650 4120 87 2185 244 235 586 764 2028 783 2157 XP Spent 47560 | 3000 1475 . 1500 . 7245 1340 6400 2975 . 1510 1360 3050 . 1550 . 1000 . 2070 4405 . 1565 . 1300 . . 3130 . 2685 Upgrades 101 | 9 5 . 7 . 18 2 7 10 . 2 3 6 . 3 . 1 . 3 8 . 3 . 1 . . 8 . 5 Propulsion Slot 4 | 1 . . . . 2 . . . . 1 . . . . . . . . . . . . . . . . . . Utility Slot 5 | 1 . . . . 2 . 1 . . . . . . . . . . 1 . . . . . . . . . . Weapon Slot 3 | 1 . . . . . . . . . . . . . 1 . . . . . . . . . . . . . 1 Core Integrity 19 | . 1 . 2 . 3 . . 4 . . 2 . . . . . . 1 1 . 1 . . . . 1 . 3 Heat Dissipation 6 | 1 . . 1 . . 1 . . . 1 . . . . . . . . . . . . . . . 2 . . Energy Generation 3 | 1 . . . . . . . . . . . . . 1 . . . . . . . . . . . 1 . . Matter Storage 5 | . . . . . . . . . . . . 4 . . . . . . 1 . . . . . . . . . Mass Support 2 | . . . . . 1 . 1 . . . . . . . . . . . . . . . . . . . . . Inventory Capacity 7 | 2 1 . 1 . . 1 1 . . . . 1 . . . . . . . . . . . . . . . . Sight Range 4 | . . . 1 . 1 . . . . . . . . . . . . . 2 . . . . . . . . . Sensor Range 11 | . . . 1 . 3 . . 2 . . . . . 1 . . . 1 1 . . . . . . 2 . . Ranged Accuracy 10 | . 1 . . . 2 . 3 . . . . . . . . 1 . . 1 . 1 . 1 . . . . . Hack Attack % 5 | 1 . . . . 1 . . . . . . . . . . . . . 2 . . . . . . . . 1 Hack Defense % 2 | 1 . . . . . . 1 . . . . . . . . . . . . . . . . . . . . . KI Resistance % 4 | . 1 . . . 1 . . 2 . . . . . . . . . . . . . . . . . . . . TH Resistance % 4 | . 1 . . . . . . . . . . 1 . . . . . . . . . . . . . 2 . . EX Resistance % 2 | . . . . . . . . 1 . . . . . . . . . . . . 1 . . . . . . . KI Damage % 4 | . . . 1 . 1 . . 1 . . 1 . . . . . . . . . . . . . . . . . TH Damage % 1 | . . . . . 1 . . . . . . . . . . . . . . . . . . . . . . . Protomatter Created 5506 | . 114 7 183 . 415 . 361 116 69 . . . 88 38 . 108 . 125 225 83 239 69 53 223 22 896 54 2018 Integrity Restored 14888 | . 135 249 604 . 972 261 865 246 207 . 420 312 . . . 324 . 375 177 219 1215 207 159 237 66 1410 162 6066 Core 14318 | . 135 249 492 . 972 261 718 246 207 . 420 72 . . . 324 . 366 177 219 1215 207 159 237 66 1348 162 6066 Parts 570 | . . . 112 . . . 147 . . . . 240 . . . . . 9 . . . . . . . 62 . . Protomatter Decayed 11575 | . 69 76 49 . 256 58 108 90 . . 44 . . 65 . . . . 290 . 422 . . 847 . 243 . 8958 Game ------ Seed StrikeNuclearDeflector Manual? 0 Play Time 05:47:11 Cumulative 236.3 hours Start 2025.08.12 @ 18:44:36 End 2025.08.13 @ 03:05:06 Sessions 5 Manual Loads 0 Difficulty Rogue Special Mode Winter2019/RPGLIKE Game No. 149 Rogue 145 Adventurer 4 Explorer 0 Win Type - Total 7 Types 6/0/1/0/0/0/0/0/0/0 Lore% 82 Gallery% 72 Achievement% 62 Wizard Run 0 Options --------- Layout 2 ASCII 0 Keyboard 1 Movement Vi Keybinds 1 Fullscreen 2 Font 24/Smallcaps Map View 50x44 Zoom Use 0% Tactical HUD 1 Map Filters NONE Filters NONE Steam 1 RUN: 8986746b-2e77-4a19-8696-193c5273855c